Workbook

Sheet Contents
C3: Sheet Tab | D3: Description | E3: Author
B4: 1 | C4: Contents
B5: 2 | C5: Step by Step Instructions
B6: 3 | C6: Summary
B7: 4 | C7: Financial Model
B8: 5 | C8: Scenario
B9: 6 | C9: Valuation
B10: 7 | C10: Tornado Graph
B11: 8 | C11: Data from PDF File
B12: 9 | C12: Audit Page
B13: 10 | C13: Production History
B14: 11 | C14: Cap Exp Backup
B15: 12 | C15: Debt Maturities
B16: 13 | C16: Stock Prices Competitors
B17: 14 | C17: Segments
B18: 15 | C18: Website Data
B20: File Name: | D20: C:\Users\Monika\Documents\Courses\Chapter 1. Models and Analysis\1. Corporate Model Templates and Exercises\Featured Corporate Finance Models\Evraz Finished.xlsm
B22: Colour Codes
B24: Last Save Date | D24: 26/02/2014 03:02:23
B25: Last Save By | D25: Winston Churchill

Sheet Step by Step Instructions
C3: Graphing Historic Data -- Use Index Function with Drop Down Box
C5: Set-up History with Production Data and reconcile revenues and EBITDA
C7: Methods to get data from pdf files
C9: Work through capital expenditures and try to find capital expenditure per unit of production
C11: Step by Step
B14: Step 1 | C14: Acquire historic data and set up the structure of the sheet
C15: Use macros and functions to make the process bearable
C16: Reconcile revenues and EBITDA
C17: Graph capacity and production data
C18: Sheet Structure
D19: Set-up timing variable for the historic time period with a switch
D20: Set-up the sheet with a couple of extra columns
D21: Set-up sections for Assumptions, for Revenue Expense and Cap Exp, for Working Capital, for Depreciation and Free Cash Flow, and for Financing
B23: Step 2: | C23: Create Assumptions
D24: Importance of structuring assumptions in the same way that the sheet will be structured beginning with revenues and operating data
D25: Use Historic Switch; Why this is so important
D26: Come up with fixed and variable costs
D27: Notion of time series variables compared to simple variables
D29: 1. Create Revenue and Production Section
E30: Find physical production
D31: 2. Create Operating Expenses
E32: Analyse fixed and variable cost
D33: 3. Capital Expenditures
E34: Maintenance Capital Expenditures
E35: Discretionary Capital Expenditures and Increase in Capacity
D36: 4. Working Capital
D37: 5. Depreciation and Taxes
D38: 6. Financing
C40: Relate Income Statement to Balance Sheet Accounts
B42: Step 3: | C42: Working Analysis of Revenues, Operating Expenses and Capital Expendtiures
B44: Step 4: | C44: Working Capital Analysis
B46: Step 5: | C46: Depreciation and Taxes
D47: 1. Enough Information to Compute Free Cash Flow
D48: 2. Compute ROIC using Direct Method
B50: Step 5: | C50: Financing and Other Income
C52: Computation of ROIC from net asset and funding perspective
C56: Reconcile EBITDA
C58: Compute Ratios that do not depend on finanacing (ROIC, sales growth, margins, cap exp to depreciation)

Sheet Summary
C2: Overall Scenario | M2: ='Financial Model'!F942 -> 2007
M3: ='Financial Model'!F943 -> 2019
C4: Discretionary Capital Expenditures | D4: =Scenario!H9 -> 300
C5: Dividend Payout | D5: =Scenario!H8 -> 0.5
C7: Custom Scenario: Production | E7: ='Financial Model'!P195 -> 0.02
C8: Custom Scenario: Price | E8: ='Financial Model'!P185 -> 1060
C9: Maintenance Cap Exp
C10: Variable Cost of Revenue | D10: ='Financial Model'!$F$223 -> 0.62
C11: Fixed Cost of Revenue | D11: ='Financial Model'!$F$217 -> 0.04
C12: Selling Costs | D12: ='Financial Model'!$F$238 -> 0.0585
C13: Interest Rate | D13: ='Financial Model'!$F$406 -> 0.085
C15: Valuation Year | D15: =Valuation!I5 -> 2014
C16: Terminal Year | D16: =Valuation!I6 -> 2020
C17: WACC | D17: =Valuation!I8 -> 0.091
C18: Terminal Growth | D18: =Valuation!I10 -> 0.033
C19: Terminal EV/EBITDA | D19: =Valuation!I9 -> 9
L20: ='Financial Model'!I1 -> 2006 | M20: ='Financial Model'!J1 -> 2007 | N20: ='Financial Model'!K1 -> 2008 | O20: ='Financial Model'!L1 -> 2009 | P20: ='Financial Model'!M1 -> 2010 | Q20: ='Financial Model'!N1 -> 2011 | R20: ='Financial Model'!O1 -> 2012 | S20: ='Financial Model'!P1 -> 2013 | T20: ='Financial Model'!Q1 -> 2014 | U20: ='Financial Model'!R1 -> 2015 | V20: ='Financial Model'!S1 -> 2016
D21: Stable | E21: EV/EBITDA | F21: Value
D22: Growth | E22: Ratio | F22: Driver | J22: EBITDA | L22: ='Financial Model'!I783 -> 2594 | M22: ='Financial Model'!J783 -> 4305 | N22: ='Financial Model'!K783 -> 6323 | O22: ='Financial Model'!L783 -> 1237 | P22: ='Financial Model'!M783 -> 2350 | Q22: ='Financial Model'!N783 -> 2898 | R22: ='Financial Model'!O783 -> 2012 | S22: ='Financial Model'!P783 -> 1807.493423 | T22: ='Financial Model'!Q783 -> 1910.508919 | U22: ='Financial Model'!R783 -> 1917.779483 | V22: ='Financial Model'!S783 -> 2081.984354
C23: PV of Explicit Cash Flow | D23: =Valuation!J50 -> 4222.297474 | E23: =D23 -> 4222.297474 | F23: =E23 -> 4222.297474 | J23: Funds from Operations | L23: ='Financial Model'!I788 -> 1997 | M23: ='Financial Model'!J788 -> 4380 | N23: ='Financial Model'!K788 -> 4378.329434 | O23: ='Financial Model'!L788 -> 1584 | P23: ='Financial Model'!M788 -> 1742 | Q23: ='Financial Model'!N788 -> 2769 | R23: ='Financial Model'!O788 -> 2453 | S23: ='Financial Model'!P788 -> 2048.482823 | T23: ='Financial Model'!Q788 -> 1921.328298 | U23: ='Financial Model'!R788 -> 1928.196062 | V23: ='Financial Model'!S788 -> 2082.096822
C24: Add: Terminal Value | D24: =Valuation!J69 -> 14272.1247 | E24: =Valuation!J94 -> 15906.76245 | F24: =Valuation!J99 -> 15777.07889 | J24: Less: Capital Expenditures | L24: ='Financial Model'!I789 -> 651 | M24: ='Financial Model'!J789 -> 744 | N24: ='Financial Model'!K789 -> 1103 | O24: ='Financial Model'!L789 -> 441 | P24: ='Financial Model'!M789 -> 832 | Q24: ='Financial Model'!N789 -> 1281 | R24: ='Financial Model'!O789 -> 1261 | S24: ='Financial Model'!P789 -> 1050 | T24: ='Financial Model'!Q789 -> 1065 | U24: ='Financial Model'!R789 -> 1080.3 | V24: ='Financial Model'!S789 -> 1095.906
C25: Total Enterprise Value | D25: =SUM(D23:D24) -> 18494.42217 | E25: =E23+E24 -> 20129.05993 | F25: =F23+F24 -> 19999.37636 | K25: Cash Flow Before Financing | L25: ='Financial Model'!I790 -> 1346 | M25: ='Financial Model'!J790 -> 3636 | N25: ='Financial Model'!K790 -> 3275.329434 | O25: ='Financial Model'!L790 -> 1143 | P25: ='Financial Model'!M790 -> 910 | Q25: ='Financial Model'!N790 -> 1488 | R25: ='Financial Model'!O790 -> 1192 | S25: ='Financial Model'!P790 -> 998.4828235 | T25: ='Financial Model'!Q790 -> 856.3282984 | U25: ='Financial Model'!R790 -> 847.8960616 | V25: ='Financial Model'!S790 -> 986.190822
C26: Less: Bridge | D26: =Valuation!J84 -> 5095.253721 | E26: =D26 -> 5095.253721 | F26: =E26 -> 5095.253721 | J26: Less: Debt Service | L26: ='Financial Model'!I791+'Financial Model'!I792+'Financial Model'!I793+'Financial Model'!I794 -> 256 | M26: ='Financial Model'!J791+'Financial Model'!J792+'Financial Model'!J793+'Financial Model'!J794 -> 450 | N26: ='Financial Model'!K791+'Financial Model'!K792+'Financial Model'!K793+'Financial Model'!K794 -> 712 | O26: ='Financial Model'!L791+'Financial Model'!L792+'Financial Model'!L793+'Financial Model'!L794 -> 717 | P26: ='Financial Model'!M791+'Financial Model'!M792+'Financial Model'!M793+'Financial Model'!M794 -> 741 | Q26: ='Financial Model'!N791+'Financial Model'!N792+'Financial Model'!N793+'Financial Model'!N794 -> 725 | R26: ='Financial Model'!O791+'Financial Model'!O792+'Financial Model'!O793+'Financial Model'!O794 -> 668 | S26: ='Financial Model'!P791+'Financial Model'!P792+'Financial Model'!P793+'Financial Model'!P794 -> 2402.072504 | T26: ='Financial Model'!Q791+'Financial Model'!Q792+'Financial Model'!Q793+'Financial Model'!Q794 -> 1541.796709 | U26: ='Financial Model'!R791+'Financial Model'!R792+'Financial Model'!R793+'Financial Model'!R794 -> 1895.432656 | V26: ='Financial Model'!S791+'Financial Model'!S792+'Financial Model'!S793+'Financial Model'!S794 -> 2302.710579
C27: Total Equity Value | D27: =D25-D26 -> 13399.16845 | E27: =E25-E26 -> 15033.80621 | F27: 14904.12264 | K27: Cash Flow Before Dividends | L27: ='Financial Model'!I795 -> 1144 | M27: ='Financial Model'!J795 -> 3268 | N27: ='Financial Model'!K795 -> 2677.329434 | O27: ='Financial Model'!L795 -> 506 | P27: ='Financial Model'!M795 -> 195 | Q27: ='Financial Model'!N795 -> 797 | R27: ='Financial Model'!O795 -> 570 | S27: ='Financial Model'!P795 -> -1339.29968 | T27: ='Financial Model'!Q795 -> -661.3574014 | U27: ='Financial Model'!R795 -> -1025.982601 | V27: ='Financial Model'!S795 -> -1294.535728
C28: Shares | D28: =Valuation!J87 -> 1339.130435 | E28: =D28 -> 1339.130435 | F28: =E28 -> 1339.130435 | J28: Less: Dividends | L28: ='Financial Model'!I796+'Financial Model'!I797 -> 0 | M28: ='Financial Model'!J796+'Financial Model'!J797 -> 1449.501816 | N28: ='Financial Model'!K796+'Financial Model'!K797 -> 1171.031859 | O28: ='Financial Model'!L796+'Financial Model'!L797 -> 0.1445396146 | P28: ='Financial Model'!M796+'Financial Model'!M797 -> 0 | Q28: ='Financial Model'!N796+'Financial Model'!N797 -> 465.7427984 | R28: ='Financial Model'!O796+'Financial Model'!O797 -> 0 | S28: ='Financial Model'!P796+'Financial Model'!P797 -> 0 | T28: ='Financial Model'!Q796+'Financial Model'!Q797 -> 69.53265241 | U28: ='Financial Model'!R796+'Financial Model'!R797 -> 99.70712348 | V28: ='Financial Model'!S796+'Financial Model'!S797 -> 185.6991245
C29: Value per Share | D29: =D27/D28 -> 10.00587255 | E29: =E27/E28 -> 11.2265436 | F29: 11.12970197 | K29: Net Cash Flow | L29: =L27-L28 -> 1144 | M29: =M27-M28 -> 1818.498184 | N29: 1506.297575 | O29: 505.8554604 | P29: 195 | Q29: 331.2572016 | R29: 570 | S29: -1339.29968 | T29: -730.8900538 | U29: -1125.689724 | V29: -1480.234853

Sheet Financial Model
I1: 2006 | J1: 2007 | K1: 2008 | L1: 2009 | M1: 2010 | N1: 2011 | O1: 2012 | P1: 2013 | Q1: 2014 | R1: 2015 | S1: 2016 | T1: 2017 | U1: 2018 | V1: 2019 | W1: 2020 | X1: 2021
B2: Last Historic Period | F2: 2012 | I2: =I1=$F$2 -> FALSE | J2: =J1=$F$2 -> FALSE | K2: FALSE | L2: FALSE | M2: FALSE | N2: FALSE | O2: TRUE | P2: FALSE | Q2: FALSE | R2: FALSE | S2: FALSE | T2: FALSE | U2: FALSE | V2: FALSE | W2: FALSE | X2: FALSE
B3: Historic Switch | I3: =I1<=$F$2 -> TRUE | J3: TRUE | K3: TRUE | L3: TRUE | M3: TRUE | N3: TRUE | O3: TRUE | P3: FALSE | Q3: FALSE | R3: FALSE | S3: FALSE | T3: FALSE | U3: FALSE | V3: FALSE | W3: FALSE | X3: FALSE
I4: =I5*2 -> 0 | J4: 0 | K4: 0 | L4: 0 | M4: 0 | N4: 0 | O4: 0
I5: =I745/2 -> 0 | J5: =J745/2 -> 0 | K5: 0 | L5: 0 | M5: 0 | N5: 0 | O5: 0
B6: Revenues and Production
D7: Steel Revenue | F7: US Millions | I7: 8014 | J7: 11908 | K7: 17925 | L7: 9421 | M7: 12951 | N7: 16044 | O7: 14208
D8: Other Revenue | F8: US Millions | I8: =I15-I7 -> 278 | J8: 951 | K8: 2455 | L8: 351 | M8: 443 | N8: 356 | O8: 518
D9: Steel Production | F9: Tons 000 | I9: =Segments!D10*100 -> 14457 | J9: =Segments!E10*100 -> 15262 | K9: =Segments!F10*100 -> 16132 | L9: =Segments!G10*100 -> 14275 | M9: =Segments!H10*100 -> 14698 | N9: =Segments!I10*100 -> 15232 | O9: =Segments!J10*100 -> 14250
D10: Steel Capacity | F10: Tons 000 | I10: =I9*1.02 -> 14746.14 | J10: =J9*1.02 -> 15567.24 | K10: =K9*1.01 -> 16293.32 | L10: =K10*1.01 -> 16456.2532 | M10: =L10*1.01 -> 16620.81573 | N10: =M10*1.01 -> 16787.02389 | O10: =N10*1.01 -> 16954.89413
B12: Profit and Loss
D13: Sale of goods | I13: 8166 | J13: 12627 | K13: 19990 | L13: 9505 | M13: 13144 | N13: 16077 | O13: 14367
D14: Rendering of services | I14: 126 | J14: 232 | K14: 390 | L14: 267 | M14: 250 | N14: 323 | O14: 359
E15: Total Revenues | I15: =SUM(I13:I14) -> 8292 | J15: =SUM(J13:J14) -> 12859 | K15: 20380 | L15: 9772 | M15: 13394 | N15: 16400 | O15: 14726
D16: Cost of revenue | I16: 5163 | J16: 7976 | K16: 13308 | L16: 8124 | M16: 10319 | N16: 12473 | O16: 11797
E17: Gross profit | I17: =I15-I16 -> 3129 | J17: =J15-J16 -> 4883 | K17: =K15-K16 -> 7072 | L17: 1648 | M17: 3075 | N17: 3927 | O17: 2929
D18: Selling and distribution costs | I18: 243 | J18: 538 | K18: 876 | L18: 626 | M18: 807 | N18: 1154 | O18: 1211
D19: General and administrative expenses | I19: 494 | J19: 682 | K19: 938 | L19: 628 | M19: 732 | N19: 921 | O19: 860
D20: Social and social infrastructure maintenance expenses | I20: 86 | J20: 82 | K20: 114 | L20: 53 | M20: 64 | N20: 61 | O20: 51
D21: Loss on disposal of property, plant and equipment | I21: 21 | J21: 26 | K21: 37 | L21: 39 | M21: 52 | N21: 50 | O21: 56
D22: Impairment of assets | I22: 20 | J22: 7 | K22: 880 | L22: 180 | M22: 147 | N22: 104 | O22: 413
D23: Foreign exchange gains/(losses), net | I23: 48 | J23: -55 | K23: -471 | L23: 156 | M23: 104 | N23: 269 | O23: -41
D24: Other operating income | I24: 18 | J24: 14 | K24: 28 | L24: 38 | M24: 63 | N24: 50 | O24: 75
D25: Other operating expenses | I25: 33 | J25: 39 | K25: 64 | L25: 121 | M25: 110 | N25: 96 | O25: 129
E26: Profit from operations | I26: =I17-I18-I19-I20-I21-I22+I23+I24-I25 -> 2298 | J26: =J17-J18-J19-J20-J21-J22+J23+J24-J25 -> 3468 | K26: 3720 | L26: 195 | M26: 1330 | N26: 1860 | O26: 243
D27: Interest income | I27: 27 | J27: 41 | K27: 57 | L27: 40 | M27: 13 | N27: 17 | O27: 23
D28: Interest expense | I28: 229 | J28: 409 | K28: 655 | L28: 677 | M28: 728 | N28: 708 | O28: 645
D29: Share of profits/(losses) of joint ventures and associates | I29: 40 | J29: 88 | K29: 198 | L29: 2 | M29: 21 | N29: 55 | O29: 1
D30: Gain/(loss) on financial assets and liabilities, net | I30: 26 | J30: -71 | K30: -129 | L30: 97 | M30: 8 | N30: -355 | O30: 164
D31: Gain/(loss) on disposal groups classified as held for sale, net | I31: -77 | J31: -6 | K31: -43 | L31: -5 | M31: -14 | N31: 8 | O31: 114
D32: Gain on bargain purchases | I32: 1 | J32: 10 | K32: 0 | L32: 6 | M32: 4 | N32: -4 | O32: 0
D33: Other non-operating gains/(losses), net | I33: 1 | J33: 4 | K33: -5 | L33: 4 | M33: -1 | N33: 0 | O33: -6
E34: Profit/(loss) before tax | I34: =I26+I27-I28+I29+I30+I31+I32+I33 -> 2087 | J34: 3125 | K34: 3143 | L34: -338 | M34: 633 | N34: 873 | O34: -106
D35: Income tax benefit/(expense) | I35: 637 | J35: 946 | K35: 1213 | L35: -46 | M35: 163 | N35: 420 | O35: 229
E36: Net profit/(loss) | I36: =I34-I35 -> 1450 | J36: =J34-J35 -> 2179 | K36: =K34-K35 -> 1930 | L36: -292 | M36: 470 | N36: 453 | O36: -335
D37: Attributable to:
D38: Equity holders of the parent entity | I38: 1377 | J38: 2103 | K38: 1868 | L38: -295 | M38: 486 | N38: 461 | O38: -308
D39: Non-controlling interests | I39: 73 | J39: 76 | K39: 62 | L39: 3 | M39: -16 | N39: -8 | O39: -27
I40: =I38+I39 -> 1450 | J40: =J38+J39 -> 2179 | K40: 1930 | L40: -292 | M40: 470 | N40: 453 | O40: -335
D42: Earnings/(losses) per share: basic | I42: 11.66 | J42: 17.62 | K42: 15.13 | L42: -0.24 | M42: 0.39 | N42: 0.36 | O42: -0.23
D43: Earnings/(losses) per share: diluted | I43: 11.58 | J43: 17.49 | K43: 15.07 | L43: -0.24 | M43: 0.39 | N43: 0.36 | O43: -0.23
C45: EBITDA Reconcilation
E46: Steel EBITDA | I46: 1964 | J46: 3036 | K46: 2746 | L46: 950 | M46: 1445 | N46: 1120 | O46: 1096
E47: Mining EBITDA | I47: 351 | J47: 444 | K47: 971 | L47: 179 | M47: 898 | N47: 1529 | O47: 569
E48: Vanadium EBITDA | I48: -2 | J48: 45 | K48: 170 | L48: 12 | M48: 90 | N48: 111 | O48: 54
E49: Other EBITDA | I49: 76 | J49: 87 | K49: 83 | L49: 110 | M49: 122 | N49: 176 | O49: 87
E50: Elimination EBITDA | I50: -42 | J50: 2 | K50: 20 | L50: 0 | M50: -155 | N50: 17 | O50: 87
E51: Total | I51: =SUM(I46:I50) -> 2347 | J51: =SUM(J46:J50) -> 3614 | K51: 3990 | L51: 1251 | M51: 2400 | N51: 2953 | O51: 1893
E52: Reported EBITDA | I52: =Segments!L138 -> 2642 | J52: =Segments!M138 -> 4305 | K52: =Segments!N138 -> 6215 | L52: =Segments!O138 -> 1237 | M52: =Segments!L141 -> 2350 | N52: =Segments!M141 -> 2898 | O52: =Segments!N141 -> 2012
E54: Depreciation | I54: =I130 -> 303 | J54: 749 | K54: 1215 | L54: 979 | M54: 925 | N54: 1153 | O54: 1259
E56: Operating Income | I56: =I17-I18-I19-I20+I24-I25 -> 2291 | J56: 3556 | K56: 5108 | L56: 258 | M56: 1425 | N56: 1745 | O56: 753
E57: Computed EBITDA | I57: =I56+I54 -> 2594 | J57: 4305 | K57: 6323 | L57: 1237 | M57: 2350 | N57: 2898 | O57: 2012
E59: Difference from Reported EBITDA | I59: =I57-I52 -> -48 | J59: =J57-J52 -> 0 | K59: 108 | L59: 0 | M59: 0 | N59: 0 | O59: 0
B61: Balance Sheet | G61: EBITDA | H61: Financing
C62: Assets
D63: Long-term Assets
D64: Property, plant and equipment Gross | I64: ='Cap Exp Backup'!Y88 -> 4694 | J64: ='Cap Exp Backup'!Z88 -> 11974 | K64: ='Cap Exp Backup'!AA88 -> 11333 | L64: ='Cap Exp Backup'!AB88 -> 11635 | M64: ='Cap Exp Backup'!AC88 -> 12372 | N64: ='Cap Exp Backup'!AD88 -> 12820 | O64: ='Cap Exp Backup'!AE88 -> 13604
D65: Accumulated Depreciation | I65: ='Cap Exp Backup'!Y89 -> -1039 | J65: ='Cap Exp Backup'!Z89 -> -1867 | K65: ='Cap Exp Backup'!AA89 -> -2321 | L65: ='Cap Exp Backup'!AB89 -> -3050 | M65: ='Cap Exp Backup'!AC89 -> -3765 | N65: ='Cap Exp Backup'!AD89 -> -4514 | O65: ='Cap Exp Backup'!AE89 -> -5812
D66: Property, plant and equipment 9 | G66: TRUE | H66: =NOT(G66) -> FALSE | I66: 3655 | J66: 10107 | K66: 9012 | L66: 8585 | M66: 8607 | N66: 8306 | O66: 7792
D67: Intangible assets other than goodwill 10 | G67: TRUE | H67: FALSE | I67: 37 | J67: 806 | K67: 885 | L67: 1098 | M67: 1004 | N67: 838 | O67: 586
D68: Goodwill | G68: TRUE | H68: FALSE | I68: 5 | J68: 2145 | K68: 2387 | L68: 2186 | M68: 2219 | N68: 2180 | O68: 2180
D69: Investments in joint ventures and associates 11 | G69: FALSE | H69: TRUE | I69: 1494 | J69: 592 | K69: 551 | L69: 634 | M69: 688 | N69: 663 | O69: 561
D70: Deferred income tax assets 8 | G70: TRUE | H70: FALSE | I70: 0 | J70: 22 | K70: 44 | L70: 69 | M70: 100 | N70: 79 | O70: 66
D71: Other non-current financial assets 13 | G71: FALSE | H71: TRUE | I71: 107 | L71: 66 | M71: 118 | N71: 53 | O71: 92
D72: Other non-current assets 13 | G72: TRUE | H72: FALSE | I72: 272 | J72: 240 | K72: 278 | L72: 128 | M72: 103 | N72: 107 | O72: 103
E73: Total Long-term Assets | I73: =SUM(I66:I72) -> 5570 | J73: =SUM(J66:J72) -> 13912 | K73: 13157 | L73: 12766 | M73: 12839 | N73: 12226 | O73: 11380
C74: Current assets
D75: Inventories 14 | G75: TRUE | H75: =NOT(G75) -> FALSE | I75: 864 | J75: 1619 | K75: 2416 | L75: 1828 | M75: 2070 | N75: 2188 | O75: 1978
D76: Trade and other receivables 15 | G76: TRUE | H76: FALSE | I76: 556 | J76: 1802 | K76: 1369 | L76: 1001 | M76: 1213 | N76: 971 | O76: 895
D77: Prepayments | G77: TRUE | H77: FALSE | I77: 82 | J77: 196 | K77: 76 | L77: 134 | M77: 192 | N77: 176 | O77: 143
D78: Loans receivable 44 1 1 | G78: FALSE | H78: TRUE | I78: 19 | J78: 48 | K78: 108 | L78: 1 | M78: 1 | N78: 44 | O78: 19
D79: Receivables from related parties 16 | G79: TRUE | H79: FALSE | I79: 54 | J79: 60 | K79: 137 | L79: 107 | M79: 80 | N79: 8 | O79: 12
D80: Income tax receivable | G80: TRUE | H80: FALSE | I80: 51 | J80: 86 | K80: 262 | L80: 58 | M80: 54 | N80: 83 | O80: 59
D81: Other taxes recoverable 17 | G81: TRUE | H81: FALSE | I81: 331 | J81: 351 | K81: 397 | L81: 258 | M81: 353 | N81: 412 | O81: 329
D82: Other current financial assets 18 | G82: FALSE | H82: TRUE | I82: 25 | J82: 25 | K82: 589 | L82: 120 | M82: 52 | N82: 57 | O82: 712
D83: Cash and cash equivalents 19 | G83: FALSE | H83: TRUE | I83: 842 | J83: 327 | K83: 930 | L83: 671 | M83: 683 | N83: 801 | O83: 1320
E84: Total Current Assets | I84: =SUM(I75:I83) -> 2824 | J84: =SUM(J75:J83) -> 4514 | K84: 6284 | L84: 4178 | M84: 4698 | N84: 4740 | O84: 5467
D85: Assets of disposal groups classified as held for sale 12 | G85: FALSE | H85: =NOT(G85) -> TRUE | I85: 105 | J85: 211 | K85: 7 | L85: 7 | M85: 2 | N85: 9 | O85: 930
E86: Total Current Assets including Assets Disposed | I86: =I84+I85 -> 2929 | J86: =J84+J85 -> 4725 | K86: 6291 | L86: 4185 | M86: 4700 | N86: 4749 | O86: 6397
D87: Total assets | I87: =I86+I73 -> 8499 | J87: =J86+J73 -> 18637 | K87: 19448 | L87: 16951 | M87: 17539 | N87: 16975 | O87: 17777
C89: EQUITY AND LIABILITIES
D90: Equity attributable to equity holders of the parent entity
D91: Issued capital 20 | I91: 318 | J91: 320 | K91: 332 | L91: 375 | M91: 375 | N91: 1338 | O91: 1340
D92: Treasury shares 20 | I92: 0 | J92: 0 | K92: -9 | L92: 0 | M92: 0 | N92: -8 | O92: -1
D93: Additional paid-in capital 20 | I93: 531 | J93: 286 | K93: 1054 | L93: 1739 | M93: 1742 | N93: 2289 | O93: 1820
D94: Revaluation surplus | I94: 0 | J94: 211 | K94: 218 | L94: 208 | M94: 180 | N94: 171 | O94: 173
D95: Legal reserve 20 | I95: 28 | J95: 29 | K95: 30 | L95: 36 | M95: 36 | N95: 0 | O95: 0
D96: Unrealised gains and losses 11,13 | L96: 4 | M96: 0 | N96: 0 | O96: 5
D97: Accumulated profits | I97: 2750 | J97: 4108 | K97: 4448 | L97: 4065 | M97: 4570 | N97: 3606 | O97: 3356
D98: Translation difference | I98: 439 | J98: 996 | K98: -1344 | L98: -1260 | M98: -1214 | N98: -1851 | O98: -1520
E99: Total | G99: FALSE | H99: TRUE | I99: =SUM(I91:I98) -> 4066 | J99: =SUM(J91:J98) -> 5950 | K99: 4729 | L99: 5167 | M99: 5689 | N99: 5545 | O99: 5173
D100: Non-controlling interests | G100: FALSE | H100: TRUE | I100: 169 | J100: 406 | K100: 245 | L100: 275 | M100: 247 | N100: 236 | O100: 200
I101: =I99+I100 -> 4235 | J101: =J99+J100 -> 6356 | K101: 4974 | L101: 5442 | M101: 5936 | N101: 5781 | O101: 5373
C102: Non-current liabilities
D103: Long-term loans 21 | G103: FALSE | H103: =NOT(G103) -> TRUE | I103: 1855 | J103: 4653 | K103: 6064 | L103: 5931 | M103: 7097 | N103: 6593 | O103: 6373
D104: Deferred income tax liabilities 8 | G104: TRUE | H104: FALSE | I104: 277 | J104: 1690 | K104: 1329 | L104: 1231 | M104: 1072 | N104: 1020 | O104: 927
D105: Finance lease liabilities 22 | G105: FALSE | H105: TRUE | I105: 42 | J105: 54 | K105: 40 | L105: 58 | M105: 38 | N105: 26 | O105: 11
D106: Employee benefits 23 | G106: FALSE | H106: TRUE | I106: 117 | J106: 347 | K106: 292 | L106: 307 | M106: 315 | N106: 296 | O106: 294
D107: Provisions 25 | G107: TRUE | H107: FALSE | I107: 39 | J107: 132 | K107: 153 | L107: 176 | M107: 279 | N107: 285 | O107: 257
D108: Other long-term liabilities 26 | G108: TRUE | H108: FALSE | I108: 47 | J108: 55 | K108: 58 | L108: 68 | M108: 143 | N108: 285 | O108: 170
E109: Total Non-Current | I109: =SUM(I103:I108) -> 2377 | J109: =SUM(J103:J108) -> 6931 | K109: 7936 | L109: 7771 | M109: 8944 | N109: 8505 | O109: 8032
C110: Current liabilities
D111: Trade and other payables 27 | G111: TRUE | H111: =NOT(G111) -> FALSE | I111: 462 | J111: 1242 | K111: 1479 | L111: 1069 | M111: 1173 | N111: 1460 | O111: 1412
D112: Advances from customers | G112: TRUE | H112: =NOT(G112) -> FALSE | I112: 67 | J112: 305 | K112: 107 | L112: 112 | M112: 205 | N112: 154 | O112: 157
D113: Short-term loans and current portion of long-term loans 21 | G113: FALSE | H113: TRUE | I113: 741 | J113: 2103 | K113: 3922 | L113: 1992 | M113: 714 | N113: 613 | O113: 1783
D114: Payables to related parties 16 | G114: TRUE | H114: FALSE | I114: 176 | J114: 1204 | K114: 322 | L114: 235 | M114: 217 | N114: 98 | O114: 257
D115: Income tax payable | G115: TRUE | H115: FALSE | I115: 77 | J115: 76 | K115: 156 | L115: 108 | M115: 78 | N115: 92 | O115: 48
D116: Other taxes payable 28 | G116: TRUE | H116: FALSE | I116: 96 | J116: 209 | K116: 154 | L116: 140 | M116: 180 | N116: 188 | O116: 195
D117: Current portion of finance lease liabilities 22 | G117: FALSE | H117: TRUE | I117: 11 | J117: 15 | K117: 15 | L117: 17 | M117: 19 | N117: 13 | O117: 2
D118: Provisions 25 | G118: TRUE | H118: FALSE | I118: 8 | J118: 55 | K118: 63 | L118: 35 | M118: 54 | N118: 53 | O118: 32
D119: Amounts payable under put options for shares of subsidiaries 4 | G119: TRUE | H119: FALSE | I119: 175 | J119: 6 | K119: 0 | O119: 0
D120: Amounts payable under put options for shares of subsidiaries | G120: TRUE | H120: FALSE | I120: 38 | J120: 80 | K120: 309 | L120: 17 | M120: 6 | N120: 9
D121: Dividends payable by the Group’s subsidiaries to non-controlling shareholders | G121: TRUE | H121: FALSE | I121: 24 | J121: 16 | K121: 11 | L121: 13 | M121: 13 | N121: 9 | O121: 8
I122: =SUM(I111:I121) -> 1875 | J122: =SUM(J111:J121) -> 5311 | K122: 6538 | L122: 3738 | M122: 2659 | N122: 2689 | O122: 3894
D123: Liabilities directly associated with disposal groups classified as held for sale | G123: FALSE | H123: TRUE | I123: 12 | J123: 39 | K123: 0 | L123: 0 | M123: 0 | N123: 0 | O123: 478
E124: Total Current Liabilities | I124: =I122+I123 -> 1887 | J124: =J122+J123 -> 5350 | K124: 6538 | L124: 3738 | M124: 2659 | N124: 2689 | O124: 4372
D125: Total equity and liabilities | I125: =I124+I109+I101 -> 8499 | J125: =J124+J109+J101 -> 18637 | K125: 19448 | L125: 16951 | M125: 17539 | N125: 16975 | O125: 17777
C127: Cash Flow Satatement
E128: Cash From Operating Activities
E129: Net Income | K129: 1797 | L129: -295 | M129: 486 | N129: 461 | O129: -308
E130: Depreciation & Amortization | I130: 303 | J130: 749 | K130: 1215 | L130: 979 | M130: 925 | N130: 1153 | O130: 1259
E131: Other Non-Cash Adjustments | K131: 1595 | L131: 411 | M131: 529 | N131: 862 | O131: 1001
E132: Changes in Non-Cash Capital | K132: 46 | L132: 604 | M132: -277 | N132: 225 | O132: 279
E133: Cash From Operations | K133: 4633 | L133: 1699 | M133: 1663 | N133: 2701 | O133: 2231
E135: Cash From Investing Activities
E136: Disposal of Fixed Assets | K136: 27 | L136: 6 | M136: 21 | N136: 23 | O136: 9
E137: Capital Expenditures | K137: -1103 | L137: -441 | M137: -832 | N137: -1281 | O137: -1261
E138: Increase in Investments | K138: -896 | L138: -25 | M138: 0 | N138: 0 | O138: 0
E139: Decrease in Investments | K139: 99 | L139: 48 | M139: 0 | N139: 0 | O139: 0
E140: Other Investing Activities | K140: -1813 | L140: 598 | M140: 66 | N140: 16 | O140: -380
E141: Cash From Investing Activities | K141: -3686 | L141: 186 | M141: -745 | N141: -1242 | O141: -1632
E143: Cash from Financing Activities
E144: Dividends Paid | I144: -352 | J144: -916 | K144: -1276 | L144: -90 | M144: 0 | N144: -491 | O144: -375
E145: Change in Short-Term Borrowings | K145: 0 | L145: 0 | M145: 0 | N145: 0 | O145: 0
E146: Increase in Long-Term Borrowings | K146: 5657 | L146: 3427 | M146: 3278 | N146: 3507 | O146: 2998
E147: Decrease in Long-term Borrowings | K147: -4044 | L147: -5781 | M147: -4165 | N147: -4122 | O147: -2745
E148: Increase in Capital Stocks | K148: 0 | L148: 310 | M148: 0 | N148: 0 | O148: 0
E149: Decrease in Capital Stocks | K149: -1 | L149: 0 | M149: 0 | N149: -22 | O149: -4
E150: Other Financing Activities | K150: -680 | L150: -10 | M150: -19 | N150: -213 | O150: 116
E151: Cash from Financing Activities | K151: -344 | L151: -2144 | M151: -906 | N151: -1341 | O151: -10
E153: Net Changes in Cash | K153: 603 | L153: -259 | M153: 12 | N153: 118 | O153: 589
A155: Assumptions
B156: Operating Assumptions
C157: Capital Expenditure Assumptions
D158: Historic Levels
E159: Historic Expenditure | I159: ='Cap Exp Backup'!Y26 -> 651 | J159: ='Cap Exp Backup'!Z26 -> 744 | K159: ='Cap Exp Backup'!AA26 -> 1103 | L159: ='Cap Exp Backup'!AB26 -> 441 | M159: ='Cap Exp Backup'!AC26 -> 832 | N159: ='Cap Exp Backup'!AD26 -> 1281 | O159: ='Cap Exp Backup'!AE26 -> 1261
E160: Maintenance Capital Expenditure | I160: 300 | J160: 350 | K160: ='Cap Exp Backup'!AA25 -> 400 | L160: ='Cap Exp Backup'!AB25 -> 150 | M160: ='Cap Exp Backup'!AC25 -> 400 | N160: ='Cap Exp Backup'!AD25 -> 500 | O160: ='Cap Exp Backup'!AE25 -> 657
D162: Maintenance Capital Expenditure
E163: Base Case Maintenance | F163: 0.02 | P163: 750 | Q163: =P163*(1+$F$163) -> 765 | R163: 780.3 | S163: 795.906 | T163: 811.82412 | U163: 828.0606024 | V163: 844.6218144 | W163: 861.5142507 | X163: 878.7445358
E164: Low Case Maintenance | F164: 0.035 | P164: 900 | Q164: =P164*(1+$F$164) -> 931.5 | R164: 964.1025 | S164: 997.8460875 | T164: 1032.770701 | U164: 1068.917675 | V164: 1106.329794 | W164: 1145.051336 | X164: 1185.128133
E165: High Case Maintenance | F165: 0.01 | P165: 550 | Q165: =P165*(1+$F$165) -> 555.5 | R165: 561.055 | S165: 566.66555 | T165: 572.3322055 | U165: 578.0555276 | V165: 583.8360828 | W165: 589.6744437 | X165: 595.5711881
E167: =INDEX(E163:E165,F167) -> Base Case Maintenance | F167: =Scenario!G54 -> 1 | I167: =IF(I3,I160,INDEX(I163:I165,$F$167)) -> 300 | J167: 350 | K167: 400 | L167: 150 | M167: 400 | N167: 500 | O167: 657 | P167: 750 | Q167: 765 | R167: 780.3 | S167: 795.906 | T167: 811.82412 | U167: 828.0606024 | V167: 844.6218144 | W167: 861.5142507 | X167: 878.7445358
D169: Investment/Discretionary Expenditure
E170: Hiistoric | I170: =I159-I160 -> 351 | J170: 394 | K170: 703 | L170: 291 | M170: 432 | N170: 781 | O170: 604
E171: Projected | F171: =Scenario!H9 -> 300 | P171: =$F$171 -> 300 | Q171: 300 | R171: 300 | S171: 300 | T171: 300 | U171: 300 | V171: 300 | W171: 300 | X171: 300
E173: Investment Capital Expenditure Historic/Projected | F173: USD Mil | I173: =IF(I3,I170,I171) -> 351 | J173: 394 | K173: 703 | L173: 291 | M173: 432 | N173: 781 | O173: 604 | P173: 300 | Q173: 300 | R173: 300 | S173: 300 | T173: 300 | U173: 300 | V173: 300 | W173: 300 | X173: 300
E175: Annual Production Capacity/Capital Expenditure | F175: 1.8 | P175: =$F$175 -> 1.8 | Q175: 1.8 | R175: 1.8 | S175: 1.8 | T175: 1.8 | U175: 1.8 | V175: 1.8 | W175: 1.8 | X175: 1.8
C177: Revenue Assumptions
D178: Steel Price
E179: Steel Revenues | F179: USD Mil | I179: =I7 -> 8014 | J179: 11908 | K179: 17925 | L179: 9421 | M179: 12951 | N179: 16044 | O179: 14208 | P179: 0 | Q179: 0 | R179: 0 | S179: 0 | T179: 0 | U179: 0 | V179: 0 | W179: 0 | X179: 0
E180: Historic Price | F180: USD/Ton | I180: =IF(I3,I7/I9*1000) -> 554.3335408 | J180: 780.2385009 | K180: 1111.145549 | L180: 659.9649737 | M180: 881.1402912 | N180: 1053.308824 | O180: 997.0526316 | P180: FALSE | Q180: FALSE | R180: FALSE | S180: FALSE | T180: FALSE | U180: FALSE | V180: FALSE | W180: FALSE | X180: FALSE
E182: Base Price Case | P182: 950 | Q182: 940 | R182: 950 | S182: 960 | T182: =S182*1.03 -> 988.8 | U182: =T182*1.03 -> 1018.464 | V182: =U182*1.03 -> 1049.01792 | W182: =V182*1.03 -> 1080.488458 | X182: =W182*1.03 -> 1112.903111
E183: Low Price Case | P183: 900 | Q183: 800 | R183: 750 | S183: 750 | T183: 800 | U183: 820 | V183: 820 | W183: 820 | X183: 820
E184: High Price Case | P184: 1050 | Q184: 1100 | R184: 1150 | S184: =R184*1.04 -> 1196 | T184: 1243.84 | U184: 1293.5936 | V184: 1345.337344 | W184: 1399.150838 | X184: 1455.116871
E185: Price Sensitivity Case | P185: 1060 | Q185: =P185 -> 1060 | R185: =Q185 -> 1060 | S185: 1060 | T185: 1060 | U185: 1060 | V185: 1060 | W185: 1060 | X185: 1060
E186: =INDEX(E182:E185,F186) -> Base Price Case | F186: =Scenario!E54 -> 1 | I186: =IF(I3,I180,INDEX(I182:I185,$F$186)) -> 554.3335408 | J186: 780.2385009 | K186: 1111.145549 | L186: 659.9649737 | M186: 881.1402912 | N186: 1053.308824 | O186: 997.0526316 | P186: 950 | Q186: 940 | R186: 950 | S186: 960 | T186: 988.8 | U186: 1018.464 | V186: 1049.01792 | W186: 1080.488458 | X186: 1112.903111
D188: Steel Production
E189: Steel Production | F189: 000 Tons | I189: =I9 -> 14457 | J189: 15262 | K189: 16132 | L189: 14275 | M189: 14698 | N189: 15232 | O189: 14250
E190: Historic Growth | H190: =show_formula(I190) ->  | J190: =J189/I189-1 -> 0.0556823684 | K190: 0.05700432447 | L190: -0.1151128192 | M190: 0.02963222417 | N190: 0.03633147367 | O190: -0.06446953782
E192: Base Production | P192: 0.01 | Q192: 0.02 | R192: 0.02 | S192: 0.01 | T192: 0.01 | U192: 0.02 | V192: 0.03 | W192: 0.03 | X192: 0.03
E193: Low Production | P193: 0 | Q193: -0.03 | R193: -0.03 | S193: 0 | T193: 0 | U193: 0 | V193: 0 | W193: 0 | X193: 0
E194: High Production | P194: 0.07 | Q194: 0.07 | R194: 0.07 | S194: 0.05 | T194: 0.04 | U194: 0.04 | V194: 0.04 | W194: 0.04 | X194: 0.04
E195: Growth Sensitivity Case | F195: =(G195-100)/1000 -> 0.02 | G195: 120 | P195: =F195 -> 0.02 | Q195: =P195 -> 0.02 | R195: =Q195 -> 0.02 | S195: 0.02 | T195: 0.02 | U195: 0.02 | V195: 0.02 | W195: 0.02 | X195: 0.02
E196: =INDEX(E192:E195,F196) -> Base Production | F196: =Scenario!F54 -> 1 | J196: =IF(J3,J190,INDEX(J192:J195,$F$196)) -> 0.0556823684 | K196: 0.05700432447 | L196: -0.1151128192 | M196: 0.02963222417 | N196: 0.03633147367 | O196: -0.06446953782 | P196: 0.01 | Q196: 0.02 | R196: 0.02 | S196: 0.01 | T196: 0.01 | U196: 0.02 | V196: 0.03 | W196: 0.03 | X196: 0.03
D198: Other Revenues
E199: Total Revenues | I199: =I13 -> 8166 | J199: 12627 | K199: 19990 | L199: 9505 | M199: 13144 | N199: 16077 | O199: 14367
E200: Other Revenue | I200: =I8 -> 278 | J200: 951 | K200: 2455 | L200: 351 | M200: 443 | N200: 356 | O200: 518
E201: Historic Growth | J201: =IF(J3,J200/I200-1) -> 2.420863309 | K201: 1.581493165 | L201: -0.8570264766 | M201: 0.2621082621 | N201: -0.1963882619 | O201: 0.4550561798 | P201: FALSE | Q201: FALSE | R201: FALSE | S201: FALSE | T201: FALSE | U201: FALSE | V201: FALSE | W201: FALSE | X201: FALSE
E202: Forecasted Growth | F202: 0.1 | P202: =$F$202 -> 0.1 | Q202: 0.1 | R202: 0.1 | S202: 0.1 | T202: 0.1 | U202: 0.1 | V202: 0.1 | W202: 0.1 | X202: 0.1
E203: Historic/Forecasst Other Revenue Growth | J203: =IF(J3,J201,J202) -> 2.420863309 | K203: 1.581493165 | L203: -0.8570264766 | M203: 0.2621082621 | N203: -0.1963882619 | O203: 0.4550561798 | P203: 0.1 | Q203: 0.1 | R203: 0.1 | S203: 0.1 | T203: 0.1 | U203: 0.1 | V203: 0.1 | W203: 0.1 | X203: 0.1
C205: Operating Expense Assumptions
D206: Cost of Revenue
E207: Cost of Revenue | I207: =I16 -> 5163 | J207: 7976 | K207: 13308 | L207: 8124 | M207: 10319 | N207: 12473 | O207: 11797 | P207: 0 | Q207: 0 | R207: 0 | S207: 0 | T207: 0 | U207: 0 | V207: 0 | W207: 0 | X207: 0
E208: Less: Depreciation and Amortisation | I208: =I54 -> 303 | J208: 749 | K208: 1215 | L208: 979 | M208: 925 | N208: 1153 | O208: 1259 | P208: 0 | Q208: 0 | R208: 0 | S208: 0 | T208: 0 | U208: 0 | V208: 0 | W208: 0 | X208: 0
E209: Cash Cost of Revenue | I209: =I207-I208 -> 4860 | J209: =J207-J208 -> 7227 | K209: 12093 | L209: 7145 | M209: 9394 | N209: 11320 | O209: 10538 | P209: 0 | Q209: 0 | R209: 0 | S209: 0 | T209: 0 | U209: 0 | V209: 0 | W209: 0 | X209: 0
E211: Steel Reveneues | I211: =I179 -> 8014 | J211: 11908 | K211: 17925 | L211: 9421 | M211: 12951 | N211: 16044 | O211: 14208 | P211: 0 | Q211: 0 | R211: 0 | S211: 0 | T211: 0 | U211: 0 | V211: 0 | W211: 0 | X211: 0
E212: Cost as Percent of Revenue | I212: =IF(I3,I209/I211) -> 0.6064387322 | J212: 0.6069029224 | K212: 0.6746443515 | L212: 0.7584120582 | M212: 0.7253493939 | N212: 0.7055597108 | O212: 0.7416948198 | P212: FALSE | Q212: FALSE | R212: FALSE | S212: FALSE | T212: FALSE | U212: FALSE | V212: FALSE | W212: FALSE | X212: FALSE
E213: Cost per Ton of Production | I213: =IF(I3,I209/I189*1000) -> 336.1693297 | J213: 473.5290263 | K213: 749.6280684 | L213: 500.525394 | M213: 639.1345761 | N213: 743.1722689 | O213: 739.5087719 | P213: FALSE | Q213: FALSE | R213: FALSE | S213: FALSE | T213: FALSE | U213: FALSE | V213: FALSE | W213: FALSE | X213: FALSE
E215: Fixed Cost | I215: 1400 | J215: =I215*(1+$F$216) -> 1442 | K215: 1485.26 | L215: 1529.8178 | M215: 1575.712334 | N215: 1622.983704 | O215: 1671.673215 | P215: 1721.823412 | Q215: 1773.478114 | R215: 1826.682457 | S215: 1881.482931 | T215: 1937.927419 | U215: 1996.065242 | V215: 2055.947199 | W215: 2117.625615 | X215: 2181.154383
E216: Historc Fixed Cost Growth | F216: 0.03 | J216: =J215/I215-1 -> 0.03 | K216: 0.03 | L216: 0.03 | M216: 0.03 | N216: 0.03 | O216: 0.03 | P216: 0.03 | Q216: 0.03 | R216: 0.03 | S216: 0.03 | T216: 0.03 | U216: 0.03 | V216: 0.03 | W216: 0.03 | X216: 0.03
E217: Forecast Growth | F217: =Scenario!H54 -> 0.04 | P217: =$F$217 -> 0.04 | Q217: =$F$217 -> 0.04 | R217: 0.04 | S217: 0.04 | T217: 0.04 | U217: 0.04 | V217: 0.04 | W217: 0.04 | X217: 0.04
E218: Historic/Forecast Fixed Cost Growth | J218: =IF(J3,J216,J217) -> 0.03 | K218: 0.03 | L218: 0.03 | M218: 0.03 | N218: 0.03 | O218: 0.03 | P218: 0.04 | Q218: 0.04 | R218: 0.04 | S218: 0.04 | T218: 0.04 | U218: 0.04 | V218: 0.04 | W218: 0.04 | X218: 0.04
E220: Variable Cost | I220: =I209-I215 -> 3460 | J220: 5785 | K220: 10607.74 | L220: 5615.1822 | M220: 7818.287666 | N220: 9697.016296 | O220: 8866.326785 | P220: -1721.823412 | Q220: -1773.478114 | R220: -1826.682457 | S220: -1881.482931 | T220: -1937.927419 | U220: -1996.065242 | V220: -2055.947199 | W220: -2117.625615 | X220: -2181.154383
E221: Remaining Cost/Ton | I221: =IF(I3,I220/I189*1000) -> 239.3304282 | J221: 379.0459966 | K221: 657.5588892 | L221: 393.3577723 | M221: 531.9286751 | N221: 636.621343 | O221: 622.1983709 | P221: FALSE | Q221: FALSE | R221: FALSE | S221: FALSE | T221: FALSE | U221: FALSE | V221: FALSE | W221: FALSE | X221: FALSE
E222: Cost as Percent of Price - Historic | I222: =IF(I3,I221/I180) -> 0.4317444472 | J222: 0.4858078603 | K222: 0.5917846583 | L222: 0.596028256 | M222: 0.6036821609 | N222: 0.6044014146 | O222: 0.6240376397 | P222: FALSE | Q222: FALSE | R222: FALSE | S222: FALSE | T222: FALSE | U222: FALSE | V222: FALSE | W222: FALSE | X222: FALSE
E223: Cost as Percent of Price - Forecast | F223: =Scenario!I54 -> 0.62 | P223: =$F$223 -> 0.62 | Q223: =$F$223 -> 0.62 | R223: 0.62 | S223: 0.62 | T223: 0.62 | U223: 0.62 | V223: 0.62 | W223: 0.62 | X223: 0.62
E224: Historic/Forecast Variable Cost | I224: =IF(I3,I222,I223) -> 0.4317444472 | J224: 0.4858078603 | K224: 0.5917846583 | L224: 0.596028256 | M224: 0.6036821609 | N224: 0.6044014146 | O224: 0.6240376397 | P224: 0.62 | Q224: 0.62 | R224: 0.62 | S224: 0.62 | T224: 0.62 | U224: 0.62 | V224: 0.62 | W224: 0.62 | X224: 0.62
D226: Selling and Distribution Costs
E227: Total Expense | I227: =I18 -> 243 | J227: 538 | K227: 876 | L227: 626 | M227: 807 | N227: 1154 | O227: 1211
E228: Percent of Revenue | I228: =I227/I199 -> 0.02975753123 | J228: 0.04260711174 | K228: 0.04382191096 | L228: 0.06586007365 | M228: 0.06139683506 | N228: 0.07177956086 | O228: 0.08429038769
... 612 more rows

Sheet Custom Case Macro

Sheet Scenario
E6: Scenario Number | H6: 1
E8: Dividend Payout Ratio | H8: =I8/100 -> 0.5 | I8: 50
E9: Discretionary Capital Expenditures | H9: 300
E11: =sheet_name(E16) -> Scenario | F11: Scenario Sheet
G16: Maintenance | H16: Cost of Revenue | J16: Selling and Distribution | L16: G&A Expense | N16: AR to | O16: Inventory | P16: AP to | Q16: Return on | R16: Interest | S16: Interest | U16: Stable | V16: EV/EBITDA | W16: Value | AN16: 1 | AO16: 2 | AP16: 3 | AQ16: 4 | AR16: 5 | AS16: 6 | AT16: 7 | AU16: 8 | AV16: 9 | AW16: 10 | AX16: 11 | AY16: 12 | AZ16: 13 | BA16: 14 | BB16: 15
D17: Scenario | E17: Production | F17: Steel Price | G17: Expenditures | H17: Fixed Growth | I17: Variable | J17: Fixed Growth | K17: Variable | L17: Fixed Growth | M17: Variable | N17: Revenues | O17: to COGS | P17: Expense | Q17: Associates | R17: Income Rate | S17: Expense Rate | U17: Growth | V17: Ratio | W17: Driver | AN17: =E16&" "&E17 -> Production | AO17: Steel Price | AP17: Maintenance Expenditures | AQ17: Cost of Revenue Fixed Growth | AR17: Variable | AS17: Selling and Distribution Fixed Growth | AT17: Variable | AU17: G&A Expense Fixed Growth | AV17: Variable | AW17: AR to Revenues | AX17: Inventory to COGS | AY17: AP to Expense | AZ17: Return on Associates | BA17: Interest Income Rate | BB17: Interest Expense Rate
U18: =Summary!D29 -> 10.00587255 | V18: =Summary!E29 -> 11.2265436 | W18: =Summary!F29 -> 11.12970197
B19: 1 | C19: 1 | D19: Base Case | E19: 1 | F19: 1 | G19: 1 | H19: 0.04 | I19: 0.62 | J19: 0.03 | K19: 0.0585 | L19: 0.03 | M19: 0.0325 | N19: 0.0625 | O19: 0.17 | P19: 0.16 | Q19: 0.05 | R19: 0.015 | S19: 0.085 | T19: 1 | U19: 10.00587255 | V19: 11.2265436 | W19: 11.12970197
B20: =B19+1 -> 2 | C20: 2 | D20: Low Case | E20: 2 | F20: 2 | G20: 2 | H20: 0.06 | I20: 0.64 | J20: 0.04 | K20: 0.06 | L20: 0.04 | M20: 0.04 | N20: 0.1 | O20: 0.2 | P20: 0.14 | Q20: 0.02 | R20: 0.01 | S20: 0.1 | T20: 2 | U20: -20.33556517 | V20: -7.422411284 | W20: -14.13437765 | AM20: 1 | AN20: =TRANSPOSE(AN17:BB17) -> Production
B21: =B20+1 -> 3 | C21: 3 | D21: High Case | E21: 3 | F21: 3 | G21: 3 | H21: 0.03 | I21: 0.61 | J21: 0.02 | K21: 0.05 | L21: 0.02 | M21: 0.03 | N21: 0.05 | O21: 0.16 | P21: 0.2 | Q21: 0.08 | R21: 0.04 | S21: 0.07 | T21: 3 | U21: 46.35344056 | V21: 37.63980226 | W21: 48.65295437 | AM21: 2 | AN21: Steel Price
B22: 4 | C22: 1 | D22: =TRANSPOSE(AN17:BB17)&" Low Case" -> Production Low Case | E22: =E20 -> 2 | F22: =F$19 -> 1 | G22: 1 | H22: 0.04 | I22: 0.62 | J22: 0.03 | K22: 0.0585 | L22: 0.03 | M22: 0.0325 | N22: 0.0625 | O22: 0.17 | P22: 0.16 | Q22: 0.05 | R22: 0.015 | S22: 0.085 | T22: 4 | U22: -1.07642754 | V22: 2.931000127 | W22: -0.2891423427 | AM22: 3 | AN22: Maintenance Expenditures
B23: 5 | C23: 2 | D23: Steel Price Low Case | E23: =E$19 -> 1 | F23: =F20 -> 2 | G23: 1 | H23: 0.04 | I23: 0.62 | J23: 0.03 | K23: 0.0585 | L23: 0.03 | M23: 0.0325 | N23: 0.0625 | O23: 0.17 | P23: 0.16 | Q23: 0.05 | R23: 0.015 | S23: 0.085 | T23: 5 | U23: 3.036393616 | V23: 5.572345836 | W23: 3.028984789 | AM23: 4 | AN23: Cost of Revenue Fixed Growth
B24: 6 | C24: 3 | D24: Maintenance Expenditures Low Case | E24: 1 | F24: 1 | G24: =G20 -> 2 | H24: 0.04 | I24: 0.62 | J24: 0.03 | K24: 0.0585 | L24: 0.03 | M24: 0.0325 | N24: 0.0625 | O24: 0.17 | P24: 0.16 | Q24: 0.05 | R24: 0.015 | S24: 0.085 | T24: 6 | U24: 7.345655268 | V24: 10.37210452 | W24: 9.593991129 | AM24: 5 | AN24: Variable
B25: 7 | C25: 4 | D25: Cost of Revenue Fixed Growth Low Case | E25: 1 | F25: 1 | G25: 1 | H25: =H20 -> 0.06 | I25: 0.62 | J25: 0.03 | K25: 0.0585 | L25: 0.03 | M25: 0.0325 | N25: 0.0625 | O25: 0.17 | P25: 0.16 | Q25: 0.05 | R25: 0.015 | S25: 0.085 | T25: 7 | U25: 10.00587255 | V25: 11.2265436 | W25: 11.12970197 | AM25: 6 | AN25: Selling and Distribution Fixed Growth
B26: 8 | C26: 5 | D26: Variable Low Case | E26: 1 | F26: 1 | G26: 1 | H26: 0.04 | I26: =I20 -> 0.64 | J26: 0.03 | K26: 0.0585 | L26: 0.03 | M26: 0.0325 | N26: 0.0625 | O26: 0.17 | P26: 0.16 | Q26: 0.05 | R26: 0.015 | S26: 0.085 | T26: 8 | U26: 8.143755816 | V26: 8.697032578 | W26: 7.703634544 | AM26: 7 | AN26: Variable
B27: 9 | C27: 6 | D27: Selling and Distribution Fixed Growth Low Case | E27: 1 | F27: 1 | G27: 1 | H27: 0.04 | I27: 0.62 | J27: =J20 -> 0.04 | K27: 0.0585 | L27: 0.03 | M27: 0.0325 | N27: 0.0625 | O27: 0.17 | P27: 0.16 | Q27: 0.05 | R27: 0.015 | S27: 0.085 | T27: 9 | U27: 9.88342672 | V27: 11.13442055 | W27: 10.99813766 | AM27: 8 | AN27: G&A Expense Fixed Growth
B28: 10 | C28: 7 | D28: Variable Low Case | E28: 1 | F28: 1 | G28: 1 | H28: 0.04 | I28: 0.62 | J28: 0.03 | K28: =K20 -> 0.06 | L28: 0.03 | M28: 0.0325 | N28: 0.0625 | O28: 0.17 | P28: 0.16 | Q28: 0.05 | R28: 0.015 | S28: 0.085 | T28: 10 | U28: 9.760178876 | V28: 11.0347412 | W28: 10.86780245 | AM28: 9 | AN28: Variable
B29: 11 | C29: 8 | D29: G&A Expense Fixed Growth Low Case | E29: 1 | F29: 1 | G29: 1 | H29: 0.04 | I29: 0.62 | J29: 0.03 | K29: 0.0585 | L29: =L20 -> 0.04 | M29: 0.0325 | N29: 0.0625 | O29: 0.17 | P29: 0.16 | Q29: 0.05 | R29: 0.015 | S29: 0.085 | T29: 11 | U29: 9.713135589 | V29: 11.00837532 | W29: 10.81454118 | AM29: 10 | AN29: AR to Revenues
B30: 12 | C30: 9 | D30: Variable Low Case | E30: 1 | F30: 1 | G30: 1 | H30: 0.04 | I30: 0.62 | J30: 0.03 | K30: 0.0585 | L30: 0.03 | M30: =M20 -> 0.04 | N30: 0.0625 | O30: 0.17 | P30: 0.16 | Q30: 0.05 | R30: 0.015 | S30: 0.085 | T30: 12 | U30: 8.773192886 | V30: 10.26332029 | W30: 9.815993062 | AM30: 11 | AN30: Inventory to COGS
B31: 13 | C31: 10 | D31: AR to Revenues Low Case | E31: 1 | F31: 1 | G31: 1 | H31: 0.04 | I31: 0.62 | J31: 0.03 | K31: 0.0585 | L31: 0.03 | M31: 0.0325 | N31: =N20 -> 0.1 | O31: 0.17 | P31: 0.16 | Q31: 0.05 | R31: 0.015 | S31: 0.085 | T31: 13 | U31: 9.133481046 | V31: 10.72751445 | W31: 10.63067282 | AM31: 12 | AN31: AP to Expense
B32: 14 | C32: 11 | D32: Inventory to COGS Low Case | E32: 1 | F32: 1 | G32: 1 | H32: 0.04 | I32: 0.62 | J32: 0.03 | K32: 0.0585 | L32: 0.03 | M32: 0.0325 | N32: 0.0625 | O32: =O20 -> 0.2 | P32: 0.16 | Q32: 0.05 | R32: 0.015 | S32: 0.085 | T32: 14 | U32: 9.563053345 | V32: 10.94708452 | W32: 10.85024289 | AM32: 13 | AN32: Return on Associates
B33: 15 | C33: 12 | D33: AP to Expense Low Case | E33: 1 | F33: 1 | G33: 1 | H33: 0.04 | I33: 0.62 | J33: 0.03 | K33: 0.0585 | L33: 0.03 | M33: 0.0325 | N33: 0.0625 | O33: 0.17 | P33: =P20 -> 0.14 | Q33: 0.05 | R33: 0.015 | S33: 0.085 | T33: 15 | U33: 9.711389205 | V33: 11.040967 | W33: 10.94412538 | AM33: 14 | AN33: Interest Income Rate
B34: 16 | C34: 13 | D34: Return on Associates Low Case | E34: 1 | F34: 1 | G34: 1 | H34: 0.04 | I34: 0.62 | J34: 0.03 | K34: 0.0585 | L34: 0.03 | M34: 0.0325 | N34: 0.0625 | O34: 0.17 | P34: 0.16 | Q34: =Q20 -> 0.02 | R34: 0.015 | S34: 0.085 | T34: 16 | U34: 9.99012931 | V34: 11.21080036 | W34: 11.11395873 | AM34: 15 | AN34: Interest Expense Rate
B35: 17 | C35: 14 | D35: Interest Income Rate Low Case | E35: 1 | F35: 1 | G35: 1 | H35: 0.04 | I35: 0.62 | J35: 0.03 | K35: 0.0585 | L35: 0.03 | M35: 0.0325 | N35: 0.0625 | O35: 0.17 | P35: 0.16 | Q35: 0.05 | R35: =R20 -> 0.01 | S35: 0.085 | T35: 17 | U35: 9.998241717 | V35: 11.21891277 | W35: 11.12207114
B36: 18 | C36: 15 | D36: Interest Expense Rate Low Case | E36: 1 | F36: 1 | G36: 1 | H36: 0.04 | I36: 0.62 | J36: 0.03 | K36: 0.0585 | L36: 0.03 | M36: 0.0325 | N36: 0.0625 | O36: 0.17 | P36: 0.16 | Q36: 0.05 | R36: 0.015 | S36: =S20 -> 0.1 | T36: 18 | U36: 9.908368345 | V36: 11.1290394 | W36: 11.03219777
B37: 19 | C37: 1 | D37: =TRANSPOSE(AN17:BB17)&" High Case" -> Production High Case | E37: =E21 -> 3 | F37: 1 | G37: 1 | H37: 0.04 | I37: 0.62 | J37: 0.03 | K37: 0.0585 | L37: 0.03 | M37: 0.0325 | N37: 0.0625 | O37: 0.17 | P37: 0.16 | Q37: 0.05 | R37: 0.015 | S37: 0.085 | T37: 19 | U37: 21.79829424 | V37: 20.31770137 | W37: 24.0416758
B38: 20 | C38: 2 | D38: Steel Price High Case | E38: 1 | F38: =F21 -> 3 | G38: 1 | H38: 0.04 | I38: 0.62 | J38: 0.03 | K38: 0.0585 | L38: 0.03 | M38: 0.0325 | N38: 0.0625 | O38: 0.17 | P38: 0.16 | Q38: 0.05 | R38: 0.015 | S38: 0.085 | T38: 20 | U38: 21.35661692 | V38: 19.87132877 | W38: 23.49398138
B39: 21 | C39: 3 | D39: Maintenance Expenditures High Case | E39: 1 | F39: 1 | G39: =G21 -> 3 | H39: 0.04 | I39: 0.62 | J39: 0.03 | K39: 0.0585 | L39: 0.03 | M39: 0.0325 | N39: 0.0625 | O39: 0.17 | P39: 0.16 | Q39: 0.05 | R39: 0.015 | S39: 0.085 | T39: 21 | U39: 12.64887834 | V39: 12.16882787 | W39: 12.82582494
B40: 22 | C40: 4 | D40: Cost of Revenue Fixed Growth High Case | E40: 1 | F40: 1 | G40: 1 | H40: =H21 -> 0.03 | I40: 0.62 | J40: 0.03 | K40: 0.0585 | L40: 0.03 | M40: 0.0325 | N40: 0.0625 | O40: 0.17 | P40: 0.16 | Q40: 0.05 | R40: 0.015 | S40: 0.085 | T40: 22 | U40: 10.00587255 | V40: 11.2265436 | W40: 11.12970197
B41: 23 | C41: 5 | D41: Variable High Case | E41: 1 | F41: 1 | G41: 1 | H41: 0.04 | I41: =I21 -> 0.61 | J41: 0.03 | K41: 0.0585 | L41: 0.03 | M41: 0.0325 | N41: 0.0625 | O41: 0.17 | P41: 0.16 | Q41: 0.05 | R41: 0.015 | S41: 0.085 | T41: 23 | U41: 11.5487179 | V41: 12.42394023 | W41: 12.77537681
B42: 24 | C42: 6 | D42: Selling and Distribution Fixed Growth High Case | E42: 1 | F42: 1 | G42: 1 | H42: 0.04 | I42: 0.62 | J42: =J21 -> 0.02 | K42: 0.0585 | L42: 0.03 | M42: 0.0325 | N42: 0.0625 | O42: 0.17 | P42: 0.16 | Q42: 0.05 | R42: 0.015 | S42: 0.085 | T42: 24 | U42: 10.12511027 | V42: 11.31632898 | W42: 11.25779642
B43: 25 | C43: 7 | D43: Variable High Case | E43: 1 | F43: 1 | G43: 1 | H43: 0.04 | I43: 0.62 | J43: 0.03 | K43: =K21 -> 0.05 | L43: 0.03 | M43: 0.0325 | N43: 0.0625 | O43: 0.17 | P43: 0.16 | Q43: 0.05 | R43: 0.015 | S43: 0.085 | T43: 25 | U43: 11.37073738 | V43: 12.28602457 | W43: 12.58639995
B44: 26 | C44: 8 | D44: G&A Expense Fixed Growth High Case | E44: 1 | F44: 1 | G44: 1 | H44: 0.04 | I44: 0.62 | J44: 0.03 | K44: 0.0585 | L44: =L21 -> 0.02 | M44: 0.0325 | N44: 0.0625 | O44: 0.17 | P44: 0.16 | Q44: 0.05 | R44: 0.015 | S44: 0.085 | T44: 26 | U44: 10.2807934 | V44: 11.43179499 | W44: 11.42557339
B45: 27 | C45: 9 | D45: Variable High Case | E45: 1 | F45: 1 | G45: 1 | H45: 0.04 | I45: 0.62 | J45: 0.03 | K45: 0.0585 | L45: 0.03 | M45: =M21 -> 0.03 | N45: 0.0625 | O45: 0.17 | P45: 0.16 | Q45: 0.05 | R45: 0.015 | S45: 0.085 | T45: 27 | U45: 10.41380676 | V45: 11.54465903 | W45: 11.56464594
B46: 28 | C46: 10 | D46: AR to Revenues High Case | E46: 1 | F46: 1 | G46: 1 | H46: 0.04 | I46: 0.62 | J46: 0.03 | K46: 0.0585 | L46: 0.03 | M46: 0.0325 | N46: =N21 -> 0.05 | O46: 0.17 | P46: 0.16 | Q46: 0.05 | R46: 0.015 | S46: 0.085 | T46: 28 | U46: 10.29357012 | V46: 11.38978705 | W46: 11.29294543
B47: 29 | C47: 11 | D47: Inventory to COGS High Case | E47: 1 | F47: 1 | G47: 1 | H47: 0.04 | I47: 0.62 | J47: 0.03 | K47: 0.0585 | L47: 0.03 | M47: 0.0325 | N47: 0.0625 | O47: =O21 -> 0.16 | P47: 0.16 | Q47: 0.05 | R47: 0.015 | S47: 0.085 | T47: 29 | U47: 10.15199798 | V47: 11.31821566 | W47: 11.22137404
B48: 30 | C48: 12 | D48: AP to Expense High Case | E48: 1 | F48: 1 | G48: 1 | H48: 0.04 | I48: 0.62 | J48: 0.03 | K48: 0.0585 | L48: 0.03 | M48: 0.0325 | N48: 0.0625 | O48: 0.17 | P48: =P21 -> 0.2 | Q48: 0.05 | R48: 0.015 | S48: 0.085 | T48: 30 | U48: 10.58984969 | V48: 11.59270725 | W48: 11.49586562
B49: 31 | C49: 13 | D49: Return on Associates High Case | E49: 1 | F49: 1 | G49: 1 | H49: 0.04 | I49: 0.62 | J49: 0.03 | K49: 0.0585 | L49: 0.03 | M49: 0.0325 | N49: 0.0625 | O49: 0.17 | P49: 0.16 | Q49: =Q21 -> 0.08 | R49: 0.015 | S49: 0.085 | T49: 31 | U49: 10.02117133 | V49: 11.24184238 | W49: 11.14500076
B50: 32 | C50: 14 | D50: Interest Income Rate High Case | E50: 1 | F50: 1 | G50: 1 | H50: 0.04 | I50: 0.62 | J50: 0.03 | K50: 0.0585 | L50: 0.03 | M50: 0.0325 | N50: 0.0625 | O50: 0.17 | P50: 0.16 | Q50: =Q22 -> 0.05 | R50: =R21 -> 0.04 | S50: 0.085 | T50: 32 | U50: 10.04099908 | V50: 11.26167013 | W50: 11.16482851
B51: 33 | C51: 15 | D51: Interest Expense Rate High Case | E51: 1 | F51: 1 | G51: 1 | H51: 0.04 | I51: 0.62 | J51: 0.03 | K51: 0.0585 | L51: 0.03 | M51: 0.0325 | N51: 0.0625 | O51: 0.17 | P51: 0.16 | Q51: 0.05 | R51: 0.015 | S51: =S21 -> 0.07 | T51: 33 | U51: 10.07851189 | V51: 11.29918295 | W51: 11.20234132
B52: 34 | D52: Custom Case | E52: =E60/E58 -> 1 | F52: =F60/F58 -> 1 | G52: 1 | H52: 0.04 | I52: 0.62 | J52: 0.03 | K52: 0.0585 | L52: 0.03 | M52: 0.0325 | N52: 0.0625 | O52: 0.17 | P52: 0.16 | Q52: 0.05 | R52: 0.015 | S52: 0.085 | T52: 34 | U52: 10.00587255 | V52: 11.2265436 | W52: 11.12970197
D54: =INDEX(D19:D52,$H$6) -> Base Case | E54: =INDEX(E19:E52,$H$6) -> 1 | F54: =INDEX(F19:F52,$H$6) -> 1 | G54: =INDEX(G19:G52,$H$6) -> 1 | H54: =INDEX(H19:H52,$H$6) -> 0.04 | I54: =INDEX(I19:I52,$H$6) -> 0.62 | J54: 0.03 | K54: 0.0585 | L54: 0.03 | M54: 0.0325 | N54: 0.0625 | O54: 0.17 | P54: 0.16 | Q54: 0.05 | R54: 0.015 | S54: 0.085
D57: Copied | E57: 1 | F57: 1 | G57: 1 | H57: 0.04 | I57: 0.62 | J57: 0.03 | K57: 0.0585 | L57: 0.03 | M57: 0.0325 | N57: 0.0625 | O57: 0.17 | P57: 0.16 | Q57: 0.05 | R57: 0.015 | S57: 0.085
D58: Multiplier | E58: 1 | F58: 1 | G58: 1 | H58: 1000 | I58: 1000 | J58: 1000 | K58: 1000 | L58: 1000 | M58: 1000 | N58: 1000 | O58: 1000 | P58: 1000 | Q58: 1000 | R58: 1000 | S58: 1000
D59: Adjusted | E59: =E57*E58 -> 1 | F59: =F57*F58 -> 1 | G59: 1 | H59: 40 | I59: 620 | J59: 30 | K59: 58.5 | L59: 30 | M59: 32.5 | N59: 62.5 | O59: 170 | P59: 160 | Q59: 50 | R59: 15 | S59: 85
D60: Spinner | E60: 1 | F60: 1 | G60: 1 | H60: 40 | I60: 620 | J60: 30 | K60: 58.5 | L60: 30 | M60: 32.5 | N60: 62.5 | O60: 170 | P60: 160 | Q60: 50 | R60: 15 | S60: 85
E64: Low vs Base | F64: High vs Base
C65: 1 | D65: =TRANSPOSE(AN17:BB17) -> Production | E65: =U22-$U$19 -> -11.08230009 | F65: =U37-$U$19 -> 11.79242169
C66: =C65+1 -> 2 | D66: Steel Price | E66: =U23-$U$19 -> -6.969478929 | F66: =U38-$U$19 -> 11.35074437
C67: =C66+1 -> 3 | D67: Maintenance Expenditures | E67: -2.660217277 | F67: 2.643005798
C68: 4 | D68: Cost of Revenue Fixed Growth | E68: 0 | F68: 0
C69: 5 | D69: Variable | E69: -1.862116729 | F69: 1.542845352
C70: 6 | D70: Selling and Distribution Fixed Growth | E70: -0.1224458254 | F70: 0.1192377213
C71: 7 | D71: Variable | E71: -0.2456936693 | F71: 1.364864835
C72: 8 | D72: G&A Expense Fixed Growth | E72: -0.2927369566 | F72: 0.2749208547
C73: 9 | D73: Variable | E73: -1.232679659 | F73: 0.4079342158
C74: 10 | D74: AR to Revenues | E74: -0.8723914995 | F74: 0.2876975744
C75: 11 | D75: Inventory to COGS | E75: -0.4428191996 | F75: 0.1461254396
C76: 12 | D76: AP to Expense | E76: -0.2944833402 | F76: 0.5839771459
C77: 13 | D77: Return on Associates | E77: -0.01574323516 | F77: 0.01529878636
C78: 14 | D78: Interest Income Rate | E78: -0.007630828508 | F78: 0.03512653563
C79: 15 | D79: Interest Expense Rate | E79: -0.09750419966 | F79: 0.07263934983
I782: =I719 -> 0 | J782: =J719 -> 0 | K782: 0 | L782: 0 | M782: 0 | N782: 0 | O782: 0 | P782: 0 | Q782: 0 | R782: 0 | S782: 0 | T782: 0 | U782: 0 | V782: 0 | W782: 0 | X782: 0
D789: Actual Income
D790: Historic Income Check
A848: Balance Sheet
B849: Common Equity Balance
C850: Opening Balance
C851: Add: New Equity Issues
C852: Add: Net Income to Common
C853: Less: Dividends
D955: Return on Common Equity

Sheet Valuation
E1: Year | L1: 2006 | M1: 2007 | N1: 2008 | O1: 2009 | P1: 2010 | Q1: 2011 | R1: 2012 | S1: 2013 | T1: 2014 | U1: 2015 | V1: 2016 | W1: 2017 | X1: 2018 | Y1: 2019 | Z1: 2020 | AA1: 2021
E2: Holding Period Switch | I2: =I5 -> 2014 | J2: =I6 -> 2020 | L2: =AND(L1>$I$2,L1<=$J$2) -> FALSE | M2: =AND(M1>$I$2,M1<=$J$2) -> FALSE | N2: FALSE | O2: FALSE | P2: FALSE | Q2: FALSE | R2: FALSE | S2: FALSE | T2: FALSE | U2: TRUE | V2: TRUE | W2: TRUE | X2: TRUE | Y2: TRUE | Z2: TRUE | AA2: FALSE
E3: Terminal Period Switch | I3: =I6 -> 2020 | L3: =L1=$I$3 -> FALSE | M3: =M1=$I$3 -> FALSE | N3: FALSE | O3: FALSE | P3: FALSE | Q3: FALSE | R3: FALSE | S3: FALSE | T3: FALSE | U3: FALSE | V3: FALSE | W3: FALSE | X3: FALSE | Y3: FALSE | Z3: TRUE | AA3: FALSE
E5: Valuation Year | I5: 2014
E6: Terminal Year | I6: 2020
E8: WACC | I8: =J8/1000 -> 0.091 | J8: 91
E9: Terminal EV/EBITDA | I9: 9 | L9: =J73 -> 19804.4494
E10: Terminal Growth Rate | I10: =J10/1000 -> 0.033 | J10: 33
E11: Terminal ROIC/WACC Spread | I11: =J11/1000 -> 0.01 | J11: 10
E12: Tax Rate | I12: 0.25
E13: Apply Stable Ratios | I13: FALSE
E15: Stable Ratios
F16: Working Capital
G17: Working Capital to EBITDA | L17: ='Financial Model'!I560 -> 0.3141865844 | M17: ='Financial Model'!J560 -> 0.2139372822 | N17: ='Financial Model'!K560 -> 0.3251621066 | O17: ='Financial Model'!L560 -> 1.339531124 | P17: ='Financial Model'!M560 -> 0.8663829787 | Q17: ='Financial Model'!N560 -> 0.6124913734 | R17: ='Financial Model'!O560 -> 0.6496023857 | S17: ='Financial Model'!P560 -> 0.5992768208 | T17: ='Financial Model'!Q560 -> 0.5787748316 | U17: ='Financial Model'!R560 -> 0.5883914117 | V17: ='Financial Model'!S560 -> 0.5595185788 | W17: ='Financial Model'!T560 -> 0.5647256568 | X17: ='Financial Model'!U560 -> 0.5220274035 | Y17: ='Financial Model'!V560 -> 0.5182442067 | Z17: ='Financial Model'!W560 -> 0.4794808828 | AA17: ='Financial Model'!X560 -> 0.4777916947
G18: EBITDA | L18: ='Financial Model'!I516 -> 2594 | M18: ='Financial Model'!J516 -> 4305 | N18: ='Financial Model'!K516 -> 6323 | O18: ='Financial Model'!L516 -> 1237 | P18: ='Financial Model'!M516 -> 2350 | Q18: ='Financial Model'!N516 -> 2898 | R18: ='Financial Model'!O516 -> 2012 | S18: ='Financial Model'!P516 -> 1807.493423 | T18: ='Financial Model'!Q516 -> 1910.508919 | U18: ='Financial Model'!R516 -> 1917.779483 | V18: ='Financial Model'!S516 -> 2081.984354 | W18: ='Financial Model'!T516 -> 2122.626172 | X18: ='Financial Model'!U516 -> 2437.357295 | Y18: ='Financial Model'!V516 -> 2574.20768 | Z18: ='Financial Model'!W516 -> 2980.490827 | AA18: ='Financial Model'!X516 -> 3137.000635
G19: Stable Ratio (WC/EBITDA x g/(1+g) | L19: =L17*($I$10/(1+$I$10)) -> 0.01003693832 | M19: =M17*($I$10/(1+$I$10)) -> 0.00683439527 | N19: 0.01038756004 | O19: 0.04279237859 | P19: 0.0276772878 | Q19: 0.01956652016 | R19: 0.02075206072 | S19: 0.01914437085 | T19: 0.01848941863 | U19: 0.01879662787 | V19: 0.01787426244 | W19: 0.01804060666 | X19: 0.01667657727 | Y19: 0.01655572006 | Z19: 0.01531739509 | AA19: 0.01526343265
G20: Stable Working Capital Change | L20: =L19*L18*L3 -> 0 | M20: =M19*M18*M3 -> 0 | N20: 0 | O20: 0 | P20: 0 | Q20: 0 | R20: 0 | S20: 0 | T20: 0 | U20: 0 | V20: 0 | W20: 0 | X20: 0 | Y20: 0 | Z20: 45.65335558 | AA20: 0
G21: Working Capital Changes from Model | L21: ='Financial Model'!I558 -> 0 | M21: ='Financial Model'!J558 -> 106 | N21: ='Financial Model'!K558 -> 1135 | O21: ='Financial Model'!L558 -> -399 | P21: ='Financial Model'!M558 -> 379 | Q21: ='Financial Model'!N558 -> -261 | R21: ='Financial Model'!O558 -> -468 | S21: ='Financial Model'!P558 -> -223.8110878 | T21: ='Financial Model'!Q558 -> 22.56556596 | U21: ='Financial Model'!R558 -> 22.6504994 | V21: ='Financial Model'!S558 -> 36.50394937 | W21: ='Financial Model'!T558 -> 33.79253234 | X21: ='Financial Model'!U558 -> 73.66584105 | Y21: ='Financial Model'!V558 -> 61.7009168 | Z21: ='Financial Model'!W558 -> 95.020156 | AA21: ='Financial Model'!X558 -> 69.74447642
G22: Working Capital Applied in Terminal Year | L22: =IF($I$13,L20,L21)*L3 -> 0 | M22: =IF($I$13,M20,M21)*M3 -> 0 | N22: 0 | O22: 0 | P22: 0 | Q22: 0 | R22: 0 | S22: 0 | T22: 0 | U22: 0 | V22: 0 | W22: 0 | X22: 0 | Y22: 0 | Z22: 95.020156 | AA22: 0
F24: Depreciation and Capital Expenditures
G25: Gross Depreciation Rate | L25: ='Financial Model'!I573 -> 0.06455048999 | M25: ='Financial Model'!J573 -> 0.08987281018 | N25: ='Financial Model'!K573 -> 0.1042605226 | O25: ='Financial Model'!L573 -> 0.08524904215 | P25: ='Financial Model'!M573 -> 0.07706085725 | Q25: ='Financial Model'!N573 -> 0.09153699587 | R25: ='Financial Model'!O573 -> 0.09529215864 | S25: ='Financial Model'!P573 -> 0.095 | T25: ='Financial Model'!Q573 -> 0.095 | U25: ='Financial Model'!R573 -> 0.095 | V25: ='Financial Model'!S573 -> 0.095 | W25: ='Financial Model'!T573 -> 0.095 | X25: ='Financial Model'!U573 -> 0.095 | Y25: ='Financial Model'!V573 -> 0.095 | Z25: ='Financial Model'!W573 -> 0.095 | AA25: ='Financial Model'!X573 -> 0.095
G26: Plant Life | L26: =1/L25 -> 15.49174917 | M26: =1/M25 -> 11.12683578 | N26: 9.591358025 | O26: 11.73033708 | P26: 12.97675676 | Q26: 10.92454467 | R26: 10.49404289 | S26: 10.52631579 | T26: 10.52631579 | U26: 10.52631579 | V26: 10.52631579 | W26: 10.52631579 | X26: 10.52631579 | Y26: 10.52631579 | Z26: 10.52631579 | AA26: 10.52631579
G27: Net Depreciation Rate | L27: =net_depreciation_rate(L26,$I$10) -> 0.1099455593 | M27: =net_depreciation_rate(M26,$I$10) -> 0.1550191985 | N27: 0.1721912872 | O27: 0.1417572043 | P27: 0.1271831727 | Q27: 0.1494338351 | R27: 0.1597081019 | S27: 0.1588891485 | T27: 0.1588891485 | U27: 0.1588891485 | V27: 0.1588891485 | W27: 0.1588891485 | X27: 0.1588891485 | Y27: 0.1588891485 | Z27: 0.1588891485 | AA27: 0.1588891485
G28: Net Plant | L28: ='Financial Model'!I582 -> 3655 | M28: ='Financial Model'!J582 -> 10107 | N28: ='Financial Model'!K582 -> 9012 | O28: ='Financial Model'!L582 -> 8585 | P28: ='Financial Model'!M582 -> 8607 | Q28: ='Financial Model'!N582 -> 8306 | R28: ='Financial Model'!O582 -> 7792 | S28: ='Financial Model'!P582 -> 7549.62 | T28: ='Financial Model'!Q582 -> 7351.364934 | U28: ='Financial Model'!R582 -> 7193.205492 | V28: ='Financial Model'!S582 -> 7071.521576 | W28: ='Financial Model'!T582 -> 6983.061647 | X28: ='Financial Model'!U582 -> 6924.90612 | Y28: ='Financial Model'!V582 -> 6894.43442 | Z28: ='Financial Model'!W582 -> 6889.295319 | AA28: ='Financial Model'!X582 -> 6907.380239
G29: Depreciation Expense in Model | L29: ='Financial Model'!I574 -> 303 | M29: ='Financial Model'!J574 -> 749 | N29: ='Financial Model'!K574 -> 1215 | O29: ='Financial Model'!L574 -> 979 | P29: ='Financial Model'!M574 -> 925 | Q29: ='Financial Model'!N574 -> 1153 | R29: ='Financial Model'!O574 -> 1259 | S29: ='Financial Model'!P574 -> 1292.38 | T29: ='Financial Model'!Q574 -> 1263.255066 | U29: ='Financial Model'!R574 -> 1238.459442 | V29: ='Financial Model'!S574 -> 1217.589916 | W29: ='Financial Model'!T574 -> 1200.284049 | X29: ='Financial Model'!U574 -> 1186.216129 | Y29: ='Financial Model'!V574 -> 1175.093514 | Z29: ='Financial Model'!W574 -> 1166.653352 | AA29: ='Financial Model'!X574 -> 1160.659616
G30: Stable Depreciation Expense | L30: =L28*L27 -> 401.8510191 | M30: =M28*M27 -> 1566.77904 | N30: 1551.78788 | O30: 1216.985599 | P30: 1094.665567 | Q30: 1241.197435 | R30: 1244.44553 | S30: 1199.552694 | T30: 1168.052115 | U30: 1142.922296 | V30: 1123.588042 | W30: 1109.532719 | X30: 1100.292437 | Y30: 1095.450815 | Z30: 1094.634267 | AA30: 1097.507765
G31: Stable Cap Exp to Depreciation | L31: =$I$10/L27+1 -> 1.300148548 | M31: =$I$10/M27+1 -> 1.212876859 | N31: 1.191647327 | O31: 1.232792401 | P31: 1.259468287 | Q31: 1.220833521 | R31: 1.206626963 | S31: 1.207691968 | T31: 1.207691968 | U31: 1.207691968 | V31: 1.207691968 | W31: 1.207691968 | X31: 1.207691968 | Y31: 1.207691968 | Z31: 1.207691968 | AA31: 1.207691968
G32: Stable Cap Exp/Current Depreciation | L32: =L31*L29 -> 393.9450101 | M32: =M31*M29 -> 908.4447671 | N32: 1447.851503 | O32: 1206.903761 | P32: 1165.008166 | Q32: 1407.62105 | R32: 1519.143346 | S32: 1560.796946 | T32: 1525.622997 | U32: 1495.677522 | V32: 1470.473562 | W32: 1449.573406 | X32: 1432.583692 | Y32: 1419.150999 | Z32: 1408.957883 | AA32: 1401.719296
G33: Stable Cap Exp/Stable Depreciation | L33: =L31*L30 -> 522.4660191 | M33: =M31*M30 -> 1900.31004 | N33: 1849.18388 | O33: 1500.290599 | P33: 1378.696567 | Q33: 1515.295435 | R33: 1501.58153 | S33: 1448.690154 | T33: 1410.647158 | U33: 1380.298077 | V33: 1356.948254 | W33: 1339.973754 | X33: 1328.814339 | Y33: 1322.967151 | Z33: 1321.981013 | AA33: 1325.451313
E35: Free Cash Flow
F36: EBITDA | L36: ='Financial Model'!I596 -> 2594 | M36: ='Financial Model'!J596 -> 4305 | N36: ='Financial Model'!K596 -> 6323 | O36: ='Financial Model'!L596 -> 1237 | P36: ='Financial Model'!M596 -> 2350 | Q36: ='Financial Model'!N596 -> 2898 | R36: ='Financial Model'!O596 -> 2012 | S36: ='Financial Model'!P596 -> 1807.493423 | T36: ='Financial Model'!Q596 -> 1910.508919 | U36: ='Financial Model'!R596 -> 1917.779483 | V36: ='Financial Model'!S596 -> 2081.984354 | W36: ='Financial Model'!T596 -> 2122.626172 | X36: ='Financial Model'!U596 -> 2437.357295 | Y36: ='Financial Model'!V596 -> 2574.20768 | Z36: ='Financial Model'!W596 -> 2980.490827 | AA36: ='Financial Model'!X596 -> 3137.000635
F37: Less: WC Changes | L37: =IF(L3,L22,L21) -> 0 | M37: =IF(M3,M22,M21) -> 106 | N37: 1135 | O37: -399 | P37: 379 | Q37: -261 | R37: -468 | S37: -223.8110878 | T37: 22.56556596 | U37: 22.6504994 | V37: 36.50394937 | W37: 33.79253234 | X37: 73.66584105 | Y37: 61.7009168 | Z37: 95.020156 | AA37: 69.74447642
F38: Less: Capital Expenditures | L38: ='Financial Model'!I789 -> 651 | M38: ='Financial Model'!J789 -> 744 | N38: ='Financial Model'!K789 -> 1103 | O38: ='Financial Model'!L789 -> 441 | P38: ='Financial Model'!M789 -> 832 | Q38: ='Financial Model'!N789 -> 1281 | R38: ='Financial Model'!O789 -> 1261 | S38: ='Financial Model'!P789 -> 1050 | T38: ='Financial Model'!Q789 -> 1065 | U38: ='Financial Model'!R789 -> 1080.3 | V38: ='Financial Model'!S789 -> 1095.906 | W38: ='Financial Model'!T789 -> 1111.82412 | X38: ='Financial Model'!U789 -> 1128.060602 | Y38: ='Financial Model'!V789 -> 1144.621814 | Z38: ='Financial Model'!W789 -> 1161.514251 | AA38: ='Financial Model'!X789 -> 1178.744536
F39: Less: Taxes | L39: =L46 -> 572.75 | M39: =M46 -> 889 | N39: 1277 | O39: 64.5 | P39: 356.25 | Q39: 436.25 | R39: 188.25 | S39: 128.7783558 | T39: 161.8134635 | U39: 169.8300102 | V39: 216.0986095 | W39: 230.5855307 | X39: 312.7852916 | Y39: 349.7785414 | Z39: 453.4593689 | AA39: 494.0852547
F40: Add: Deferred Tax Changes | L40: ='Financial Model'!I777-'Financial Model'!I772 -> 0 | M40: ='Financial Model'!J777-'Financial Model'!J772 -> 946 | N40: ='Financial Model'!K777-'Financial Model'!K772 -> 184.329434 | O40: ='Financial Model'!L777-'Financial Model'!L772 -> -123 | P40: ='Financial Model'!M777-'Financial Model'!M772 -> -190 | Q40: ='Financial Model'!N777-'Financial Model'!N772 -> -31 | R40: ='Financial Model'!O777-'Financial Model'!O772 -> 229 | S40: ='Financial Model'!P777-'Financial Model'!P772 -> -11.17108771 | T40: ='Financial Model'!Q777-'Financial Model'!Q772 -> 46.35510161 | U40: ='Financial Model'!R777-'Financial Model'!R772 -> 66.47141565 | V40: ='Financial Model'!S777-'Financial Model'!S772 -> 123.7994163 | W40: ='Financial Model'!T777-'Financial Model'!T772 -> 63.60580803 | X40: ='Financial Model'!U777-'Financial Model'!U772 -> 55.40606024 | Y40: ='Financial Model'!V777-'Financial Model'!V772 -> 57.06218144 | Z40: ='Financial Model'!W777-'Financial Model'!W772 -> 58.75142507 | AA40: ='Financial Model'!X777-'Financial Model'!X772 -> 60.47445358
F41: Add: Changes in Provisions | L41: ='Financial Model'!I786 -> 0 | M41: ='Financial Model'!J786 -> 93 | N41: ='Financial Model'!K786 -> 21 | O41: ='Financial Model'!L786 -> 23 | P41: ='Financial Model'!M786 -> 103 | Q41: ='Financial Model'!N786 -> 6 | R41: ='Financial Model'!O786 -> -28 | S41: ='Financial Model'!P786 -> -10.8716875 | T41: ='Financial Model'!Q786 -> 5.334945 | U41: ='Financial Model'!R786 -> 5.017077625 | V41: ='Financial Model'!S786 -> 8.566417251 | W41: ='Financial Model'!T786 -> 7.562827526 | X41: ='Financial Model'!U786 -> 17.14784797 | Y41: ='Financial Model'!V786 -> 13.96726549 | Z41: ='Financial Model'!W786 -> 22.09206754 | AA41: ='Financial Model'!X786 -> 15.79538269
G42: Free Cash Flow | L42: =L36-L37-L38-L39+L40+L41 -> 1370.25 | M42: =M36-M37-M38-M39+M40+M41 -> 3605 | N42: 3013.329434 | O42: 1030.5 | P42: 695.75 | Q42: 1416.75 | R42: 1231.75 | S42: 830.48338 | T42: 712.8199366 | U42: 716.4874671 | V42: 865.8416288 | W42: 817.5926246 | X42: 995.3994684 | Y42: 1089.135854 | Z42: 1351.340544 | AA42: 1470.696204
F44: Depreciation | L44: ='Financial Model'!I597 -> 303 | M44: ='Financial Model'!J597 -> 749 | N44: ='Financial Model'!K597 -> 1215 | O44: ='Financial Model'!L597 -> 979 | P44: ='Financial Model'!M597 -> 925 | Q44: ='Financial Model'!N597 -> 1153 | R44: ='Financial Model'!O597 -> 1259 | S44: ='Financial Model'!P597 -> 1292.38 | T44: ='Financial Model'!Q597 -> 1263.255066 | U44: ='Financial Model'!R597 -> 1238.459442 | V44: ='Financial Model'!S597 -> 1217.589916 | W44: ='Financial Model'!T597 -> 1200.284049 | X44: ='Financial Model'!U597 -> 1186.216129 | Y44: ='Financial Model'!V597 -> 1175.093514 | Z44: ='Financial Model'!W597 -> 1166.653352 | AA44: ='Financial Model'!X597 -> 1160.659616
F45: EBIT | L45: =L36-L44 -> 2291 | M45: =M36-M44 -> 3556 | N45: 5108 | O45: 258 | P45: 1425 | Q45: 1745 | R45: 753 | S45: 515.1134231 | T45: 647.2538539 | U45: 679.3200409 | V45: 864.3944382 | W45: 922.3421229 | X45: 1251.141166 | Y45: 1399.114166 | Z45: 1813.837476 | AA45: 1976.341019
F46: Taxes on EBIT | I46: =I12 -> 0.25 | L46: =L45*$I$46 -> 572.75 | M46: =M45*$I$46 -> 889 | N46: 1277 | O46: 64.5 | P46: 356.25 | Q46: 436.25 | R46: 188.25 | S46: 128.7783558 | T46: 161.8134635 | U46: 169.8300102 | V46: 216.0986095 | W46: 230.5855307 | X46: 312.7852916 | Y46: 349.7785414 | Z46: 453.4593689 | AA46: 494.0852547
G47: NOPAT | L47: =L45-L46 -> 1718.25 | M47: =M45-M46 -> 2667 | N47: 3831 | O47: 193.5 | P47: 1068.75 | Q47: 1308.75 | R47: 564.75 | S47: 386.3350674 | T47: 485.4403904 | U47: 509.4900307 | V47: 648.2958286 | W47: 691.7565922 | X47: 938.3558747 | Y47: 1049.335624 | Z47: 1360.378107 | AA47: 1482.255764
F49: Free Cash Flow over Holding Period | L49: =IF(L2,L42) -> FALSE | M49: =IF(M2,M42) -> FALSE | N49: FALSE | O49: FALSE | P49: FALSE | Q49: FALSE | R49: FALSE | S49: FALSE | T49: FALSE | U49: 716.4874671 | V49: 865.8416288 | W49: 817.5926246 | X49: 995.3994684 | Y49: 1089.135854 | Z49: 1351.340544 | AA49: FALSE
F50: NPV of Explicit Cash Flow | I50: =I8 -> 0.091 | J50: =NPV(I50,L49:AA49) -> 4222.297474
F52: Full year period | L52: =K52+L2 -> 0 | M52: =L52+M2 -> 0 | N52: 0 | O52: 0 | P52: 0 | Q52: 0 | R52: 0 | S52: 0 | T52: 0 | U52: 1 | V52: 2 | W52: 3 | X52: 4 | Y52: 5 | Z52: 6 | AA52: 6
F53: 1/2 year period | L53: =MAX(L52-0.5,0) -> 0 | M53: =MAX(M52-0.5,0) -> 0 | N53: 0 | O53: 0 | P53: 0 | Q53: 0 | R53: 0 | S53: 0 | T53: 0 | U53: 0.5 | V53: 1.5 | W53: 2.5 | X53: 3.5 | Y53: 4.5 | Z53: 5.5 | AA53: 5.5
F55: Full year Discount Factor | I55: =I50 -> 0.091 | K55: 1 | L55: =K55*(1+$I$55*L2) -> 1 | M55: =L55*(1+$I$55*M2) -> 1 | N55: 1 | O55: 1 | P55: 1 | Q55: 1 | R55: 1 | S55: 1 | T55: 1 | U55: 1.091 | V55: 1.190281 | W55: 1.298596571 | X55: 1.416768859 | Y55: 1.545694825 | Z55: 1.686353054 | AA55: 1.686353054
F56: Current Discount Rate | L56: =$I$55*L2 -> 0 | M56: =$I$55*M2 -> 0 | N56: 0 | O56: 0 | P56: 0 | Q56: 0 | R56: 0 | S56: 0 | T56: 0 | U56: 0.091 | V56: 0.091 | W56: 0.091 | X56: 0.091 | Y56: 0.091 | Z56: 0.091 | AA56: 0
F57: Prior Period Discount Rate | L57: =K56 -> 0 | M57: =L56 -> 0 | N57: 0 | O57: 0 | P57: 0 | Q57: 0 | R57: 0 | S57: 0 | T57: 0 | U57: 0 | V57: 0.091 | W57: 0.091 | X57: 0.091 | Y57: 0.091 | Z57: 0.091 | AA57: 0.091
F58: Weighted Discount Rate | L58: =L56*0.5+L57*0.5 -> 0 | M58: =M56*0.5+M57*0.5 -> 0 | N58: 0 | O58: 0 | P58: 0 | Q58: 0 | R58: 0 | S58: 0 | T58: 0 | U58: 0.0455 | V58: 0.091 | W58: 0.091 | X58: 0.091 | Y58: 0.091 | Z58: 0.091 | AA58: 0.0455
F59: 1/2 Year Discount Factor | K59: 1 | L59: =K59*(1+L58) -> 1 | M59: =L59*(1+M58) -> 1 | N59: 1 | O59: 1 | P59: 1 | Q59: 1 | R59: 1 | S59: 1 | T59: 1 | U59: 1.0455 | V59: 1.1406405 | W59: 1.244438786 | X59: 1.357682715 | Y59: 1.481231842 | Z59: 1.61602394 | AA59: 1.689553029
F61: Growth Rate in EBITDA | M61: =M36/L36-1 -> 0.6595990748 | N61: =N36/M36-1 -> 0.468757259 | O61: -0.8043650166 | P61: 0.8997574778 | Q61: 0.2331914894 | R61: -0.3057280883 | S61: -0.1016434279 | T61: 0.0569935663 | U61: 0.003805564034 | V61: 0.08562239408 | W61: 0.01952071251 | X61: 0.1482744005 | Y61: 0.05614703471 | Z61: 0.1578284265 | AA61: 0.05251142052
F62: Movement of Terminal Cash Flow to End of Period | M62: =M42*(1+M61/2)*M3 -> 0 | N62: =N42*(1+N61/2)*N3 -> 0 | O62: 0 | P62: 0 | Q62: 0 | R62: 0 | S62: 0 | T62: 0 | U62: 0 | V62: 0 | W62: 0 | X62: 0 | Y62: 0 | Z62: 1457.98052 | AA62: 0
F64: Value of Explicit Cash Flows | J64: =SUMPRODUCT(L42:AA42/L59:AA59*L2:AA2) -> 4406.051214
E66: Terminal Growth Rate Method
G67: Terminal Cash Flow | L67: =IF(L3,L42) -> FALSE | M67: FALSE | N67: FALSE | O67: FALSE | P67: FALSE | Q67: FALSE | R67: FALSE | S67: FALSE | T67: FALSE | U67: FALSE | V67: FALSE | W67: FALSE | X67: FALSE | Y67: FALSE | Z67: 1351.340544 | AA67: FALSE
G68: Multiplier | I68: =(1+I10)/(I8-I10) -> 17.81034483 | L68: =$I$68*L67 -> 0 | M68: =$I$68*M67 -> 0 | N68: 0 | O68: 0 | P68: 0 | Q68: 0 | R68: 0 | S68: 0 | T68: 0 | U68: 0 | V68: 0 | W68: 0 | X68: 0 | Y68: 0 | Z68: 24067.84108 | AA68: 0
G69: Terminal Proceeds - Full Year | I69: =I50 -> 0.091 | J69: =NPV(I69,L69:AA69) -> 14272.1247 | L69: =IF(L2,L68) -> FALSE | M69: FALSE | N69: FALSE | O69: FALSE | P69: FALSE | Q69: FALSE | R69: FALSE | S69: FALSE | T69: FALSE | U69: 0 | V69: 0 | W69: 0 | X69: 0 | Y69: 0 | Z69: 24067.84108 | AA69: FALSE
G70: Enterprise Value - Full Year | J70: =J69+J50 -> 18494.42217
G72: Terminal Value - 1/2 Year | J72: =SUMPRODUCT(L62:AA62*$I$68/L55:AA55) -> 15398.39819
G73: Enterprise Value - 1/2 Year | J73: =J72+J64 -> 19804.4494
G74: Percent Difference | J74: =J73/J70-1 -> 0.07083363944
G78: Less: Debt | J78: =SUMIF('Financial Model'!$1:$1,Valuation!I$5,'Financial Model'!871:871) -> 6330.919202
G79: Less: Minority Interest | J79: =SUMIF('Financial Model'!$1:$1,Valuation!I$5,'Financial Model'!849:849) -> 201.8009695
G80: Add: Cash | J80: =SUMIF('Financial Model'!$1:$1,Valuation!I$5,'Financial Model'!872:872) -> 718.46645
G81: Add: Associates | J81: =SUMIF('Financial Model'!$1:$1,Valuation!I$5,'Financial Model'!828:828) -> 561
G82: Less: Pensions | J82: =SUMIF('Financial Model'!$1:$1,Valuation!I$5,'Financial Model'!854:854) -> 294
G83: Add: Assets Held for Disposal | J83: =SUMIF('Financial Model'!$1:$1,Valuation!I$5,'Financial Model'!875:875) -> 452
H84: Total Bridge | J84: =J78-J80-J81+J82-J83+J79 -> 5095.253721
G86: Equity Value | J86: =J70-J84 -> 13399.16845
G87: Shares | J87: =SUMIF('Financial Model'!$1:$1,Valuation!I$5,'Financial Model'!741:741) -> 1339.130435
G89: Value per Share | J89: =J86/J87 -> 10.00587255
E91: Terminal EV/EBITDA Method
G92: Terminal EBITDA | L92: =IF(L3,L36) -> FALSE | M92: FALSE | N92: FALSE | O92: FALSE | P92: FALSE | Q92: FALSE | R92: FALSE | S92: FALSE | T92: FALSE | U92: FALSE | V92: FALSE | W92: FALSE | X92: FALSE | Y92: FALSE | Z92: 2980.490827 | AA92: FALSE
G93: Multiplier | J93: =I9 -> 9 | L93: =$J$93*L92 -> 0 | M93: =$J$93*M92 -> 0 | N93: 0 | O93: 0 | P93: 0 | Q93: 0 | R93: 0 | S93: 0 | T93: 0 | U93: 0 | V93: 0 | W93: 0 | X93: 0 | Y93: 0 | Z93: 26824.41745 | AA93: 0
G94: Terminal Proceeds | I94: =I50 -> 0.091 | J94: =NPV(I94,L94:AA94) -> 15906.76245 | L94: =IF(L2,L93) -> FALSE | M94: FALSE | N94: FALSE | O94: FALSE | P94: FALSE | Q94: FALSE | R94: FALSE | S94: FALSE | T94: FALSE | U94: 0 | V94: 0 | W94: 0 | X94: 0 | Y94: 0 | Z94: 26824.41745 | AA94: FALSE
E96: Terminal Value Driver
G97: NOPLAT | I97: =I10 -> 0.033 | L97: =IF(L3,L47) -> FALSE | M97: FALSE | N97: FALSE | O97: FALSE | P97: FALSE | Q97: FALSE | R97: FALSE | S97: FALSE | T97: FALSE | U97: FALSE | V97: FALSE | W97: FALSE | X97: FALSE | Y97: FALSE | Z97: 1360.378107 | AA97: FALSE
G98: Multiplier | I98: =I94+I10 -> 0.124 | J98: =(1-I97/I98)/(I94-I97) -> 12.65294772 | L98: =L97*$J$98 -> 0 | M98: =M97*$J$98 -> 0 | N98: 0 | O98: 0 | P98: 0 | Q98: 0 | R98: 0 | S98: 0 | T98: 0 | U98: 0 | V98: 0 | W98: 0 | X98: 0 | Y98: 0 | Z98: 17212.79306 | AA98: 0
G99: Terminal Proceeds | I99: =I94 -> 0.091 | J99: =NPV(I99,L99:AA99) -> 15777.07889 | L99: =IF(L3,L98) -> FALSE | M99: FALSE | N99: FALSE | O99: FALSE | P99: FALSE | Q99: FALSE | R99: FALSE | S99: FALSE | T99: FALSE | U99: FALSE | V99: FALSE | W99: FALSE | X99: FALSE | Y99: FALSE | Z99: 17212.79306 | AA99: FALSE

Sheet Data from PDF File
B2: One of the painful aspects of corporate models is acquiring historic data
A30: Notes | B30: 2008 | C30: 2007* | D30: 2006
A31: ASSETS
A32: Non-current | B32: assets
A33: Property, | B33: plant | C33: and | D33: equipment | E33: 9 | F33: $ | G33: 9.012 | H33: $ | I33: 10.107 | J33: $ | K33: 3.655
A34: Intangible | B34: assets | C34: other | D34: than | E34: goodwill | F34: 10 | G34: 885 | H34: 806 | I34: 37
A35: Goodwill | B35: 5 | C35: 2.387 | D35: 2.145 | E35: 112
A36: Investments | B36: in | C36: joint | D36: ventures | E36: and | F36: associates | G36: 11 | H36: 551 | I36: 592 | J36: 1.494
A37: Deferred | B37: income | C37: tax | D37: assets | E37: 8 | F37: 44 | G37: 22 | H37: 11
A38: Other | B38: non-current | C38: assets | D38: 13 | E38: 278 | F38: 240 | G38: 272
A39: 13.157 | B39: 13.912 | C39: 5.581
A40: Current | B40: assets
A41: Inventories | B41: 14 | C41: 2.416 | D41: 1.619 | E41: 864
A42: Trade | B42: and | C42: other | D42: receivables | E42: 15 | F42: 1.369 | G42: 1.802 | H42: 556
A43: Prepayments | B43: 76 | C43: 196 | D43: 82
A44: Loans | B44: receivable | C44: 108 | D44: 48 | E44: 19
A45: Receivables | B45: from | C45: related | D45: parties | E45: 16 | F45: 137 | G45: 60 | H45: 54
A46: Income | B46: tax | C46: receivable | D46: 262 | E46: 86 | F46: 51
A47: Other | B47: taxes | C47: recoverable | D47: 17 | E47: 397 | F47: 351 | G47: 331
A48: Short-term | B48: investments | C48: 18 | D48: 589 | E48: 25 | F48: 25
A49: Cash | B49: and | C49: cash | D49: equivalents | E49: 19 | F49: 930 | G49: 327 | H49: 842
A50: 6.284 | B50: 4.514 | C50: 2.824
A51: Assets | B51: of | C51: disposal | D51: groups | E51: classifi | F51: ed | G51: as | H51: held | I51: for | J51: sale | K51: 12 | L51: 7 | M51: 211 | N51: 105
A52: 6.291 | B52: 4.725 | C52: 2.929
A53: Total | B53: assets | C53: $ | D53: 19.448 | E53: $ | F53: 18.637 | G53: $ | H53: 8.51
A54: EQUITY | B54: AND | C54: LIABILITIES
A55: Equity
A56: Equity | B56: attributable | C56: to | D56: equity | E56: holders | F56: of | G56: the | H56: parent | I56: entity
A57: Issued | B57: capital | C57: 20 | D57: $ | E57: 332 | F57: $ | G57: 320 | H57: $ | I57: 318
A58: Treasury | B58: shares | C58: 20 | D58: -9 | E58: – | F58: –
A59: Additional | B59: paid-in | C59: capital | D59: 20 | E59: 1.054 | F59: 286 | G59: 531
A60: Revaluation | B60: surplus | C60: 4 | D60: 218 | E60: 211 | F60: –
A61: Legal | B61: reserve | C61: 20 | D61: 30 | E61: 29 | F61: 28
A62: Accumulated | B62: profi | C62: ts | D62: 4.448 | E62: 4.108 | F62: 2.75
A63: Translation | B63: difference | C63: -1.344 | D63: 996 | E63: 439
A64: 4.729 | B64: 5.95 | C64: 4.066
A65: Minority | B65: interests | C65: 245 | D65: 406 | E65: 169
A66: 4.974 | B66: 6.356 | C66: 4.235
A67: Non-current | B67: liabilities
A68: Long-term | B68: loans | C68: 21 | D68: 6.064 | E68: 4.653 | F68: 1.855
A69: Deferred | B69: income | C69: tax | D69: liabilities | E69: 8 | F69: 1.329 | G69: 1.69 | H69: 277
A70: Finance | B70: lease | C70: liabilities | D70: 22 | E70: 40 | F70: 54 | G70: 42
A71: Employee | B71: benefi | C71: ts | D71: 23 | E71: 292 | F71: 347 | G71: 117
A72: Provisions | B72: 25 | C72: 153 | D72: 132 | E72: 39
A73: Other | B73: long-term | C73: liabilities | D73: 26 | E73: 58 | F73: 55 | G73: 47
A74: 7.936 | B74: 6.931 | C74: 2.377
A75: Current | B75: liabilities
A76: Trade | B76: and | C76: other | D76: payables | E76: 27 | F76: 1.479 | G76: 1.242 | H76: 462
A77: Advances | B77: from | C77: customers | D77: 107 | E77: 305 | F77: 67
A78: Short-term | B78: loans | C78: and | D78: current | E78: portion | F78: of | G78: long-term | H78: loans | I78: 21 | J78: 3.922 | K78: 2.103 | L78: 741
A79: Payables | B79: to | C79: related | D79: parties | E79: 16 | F79: 322 | G79: 1.204 | H79: 176
A80: Income | B80: tax | C80: payable | D80: 156 | E80: 76 | F80: 77
A81: Other | B81: taxes | C81: payable | D81: 28 | E81: 154 | F81: 209 | G81: 96
A82: Current | B82: portion | C82: of | D82: fi | E82: nance | F82: lease | G82: liabilities | H82: 22 | I82: 15 | J82: 15 | K82: 11
A83: Provisions | B83: 25 | C83: 63 | D83: 55 | E83: 8
A84: Amounts | B84: payable | C84: under | D84: put | E84: options | F84: for | G84: shares | H84: of | I84: subsidiaries | J84: 4 | K84: – | L84: 6 | M84: 175
A85: Dividends | B85: payable | C85: by | D85: the | E85: parent | F85: entity | G85: to | H85: its | I85: shareholders | J85: 309 | K85: 80 | L85: 38
A86: Dividends | B86: payable | C86: by | D86: the | E86: Group’s | F86: subsidiaries | G86: to | H86: minority | I86: shareholders | J86: 11 | K86: 16 | L86: 24
A87: 6.538 | B87: 5.311 | C87: 1.875
A88: Liabilities | B88: directly | C88: associated | D88: with | E88: disposal | F88: groups | G88: classifi | H88: ed | I88: as | J88: held | K88: for | L88: sale | M88: 12 | N88: – | O88: 39 | P88: 23
A89: 6.538 | B89: 5.35 | C89: 1.898
A90: Total | B90: equity | C90: and | D90: liabilities | E90: $ | F90: 19.448 | G90: $ | H90: 18.637 | I90: $ | J90: 8.51
A91: Consolidated | B91: Balance | C91: Sheet
A92: (
A96: 1 | B96: 2 | C96: 3 | D96: 4 | E96: 5 | F96: 6 | G96: 7 | H96: 8 | I96: 9 | J96: 10 | K96: 11 | L96: 12 | M96: 13 | N96: 14 | O96: 15 | P96: 16 | Q96: 17 | R96: 18 | S96: 19 | T96: 20 | U96: 21 | V96: 22
A99: Step 1: Replace dashes with zeros and $ with blanks using CNTL F function
A100: Step 2: Run SHIFT, CNTL, M
A106: Notes | P106: 2008 | Q106: 2007 | R106: 2006
A107: ASSETS
A108: Non-current | B108: assets
A109: Property, | B109: plant | C109: and | D109: equipment | E109: 9 | P109: 9.012 | Q109: 10.107 | R109: 3.655
A110: Intangible | B110: assets | C110: other | D110: than | E110: goodwill | F110: 10 | P110: 885 | Q110: 806 | R110: 37
A111: Goodwill | B111: 5 | P111: 2.387 | Q111: 2.145 | R111: 112
A112: Investments | B112: in | C112: joint | D112: ventures | E112: and | F112: associates | G112: 11 | P112: 551 | Q112: 592 | R112: 1.494
A113: Deferred | B113: income | C113: tax | D113: assets | E113: 8 | P113: 44 | Q113: 22 | R113: 11
A114: Other | B114: non-current | C114: assets | D114: 13 | P114: 278 | Q114: 240 | R114: 272
P115: 13.157 | Q115: 13.912 | R115: 5.581
A116: Current | B116: assets
A117: Inventories | B117: 14 | P117: 2.416 | Q117: 1.619 | R117: 864
A118: Trade | B118: and | C118: other | D118: receivables | E118: 15 | P118: 1.369 | Q118: 1.802 | R118: 556
A119: Prepayments | P119: 76 | Q119: 196 | R119: 82
A120: Loans | B120: receivable | P120: 108 | Q120: 48 | R120: 19
A121: Receivables | B121: from | C121: related | D121: parties | E121: 16 | P121: 137 | Q121: 60 | R121: 54
A122: Income | B122: tax | C122: receivable | P122: 262 | Q122: 86 | R122: 51
A123: Other | B123: taxes | C123: recoverable | D123: 17 | P123: 397 | Q123: 351 | R123: 331
A124: Short-term | B124: investments | C124: 18 | P124: 589 | Q124: 25 | R124: 25
A125: Cash | B125: and | C125: cash | D125: equivalents | E125: 19 | P125: 930 | Q125: 327 | R125: 842
P126: 6.284 | Q126: 4.514 | R126: 2.824
A127: Assets | B127: of | C127: disposal | D127: groups | E127: classifi | F127: ed | G127: as | H127: held | I127: for | J127: sale | K127: 12 | P127: 7 | Q127: 211 | R127: 105
P128: 6.291 | Q128: 4.725 | R128: 2.929
A129: Total | B129: assets | P129: 19.448 | Q129: 18.637 | R129: 8.51
A130: EQUITY | B130: AND | C130: LIABILITIES
A131: Equity
A132: Equity | B132: attributable | C132: to | D132: equity | E132: holders | F132: of | G132: the | H132: parent | I132: entity
A133: Issued | B133: capital | C133: 20 | P133: 332 | Q133: 320 | R133: 318
A134: Treasury | B134: shares | C134: 20 | P134: -9 | Q134: 0 | R134: 0
A135: Additional | B135: paid-in | C135: capital | D135: 20 | P135: 1.054 | Q135: 286 | R135: 531
A136: Revaluation | B136: surplus | C136: 4 | P136: 218 | Q136: 211 | R136: 0
A137: Legal | B137: reserve | C137: 20 | P137: 30 | Q137: 29 | R137: 28
A138: Accumulated | B138: profi | C138: ts | P138: 4.448 | Q138: 4.108 | R138: 2.75
A139: Translation | B139: difference | P139: -1.344 | Q139: 996 | R139: 439
P140: 4.729 | Q140: 5.95 | R140: 4.066
A141: Minority | B141: interests | P141: 245 | Q141: 406 | R141: 169
P142: 4.974 | Q142: 6.356 | R142: 4.235
A143: Non-current | B143: liabilities
A144: Long-term | B144: loans | C144: 21 | P144: 6.064 | Q144: 4.653 | R144: 1.855
A145: Deferred | B145: income | C145: tax | D145: liabilities | E145: 8 | P145: 1.329 | Q145: 1.69 | R145: 277
A146: Finance | B146: lease | C146: liabilities | D146: 22 | P146: 40 | Q146: 54 | R146: 42
A147: Employee | B147: benefi | C147: ts | D147: 23 | P147: 292 | Q147: 347 | R147: 117
A148: Provisions | B148: 25 | P148: 153 | Q148: 132 | R148: 39
A149: Other | B149: long-term | C149: liabilities | D149: 26 | P149: 58 | Q149: 55 | R149: 47
P150: 7.936 | Q150: 6.931 | R150: 2.377
A151: Current | B151: liabilities
A152: Trade | B152: and | C152: other | D152: payables | E152: 27 | P152: 1.479 | Q152: 1.242 | R152: 462
A153: Advances | B153: from | C153: customers | P153: 107 | Q153: 305 | R153: 67
A154: Short-term | B154: loans | C154: and | D154: current | E154: portion | F154: of | G154: long-term | H154: loans | I154: 21 | P154: 3.922 | Q154: 2.103 | R154: 741
A155: Payables | B155: to | C155: related | D155: parties | E155: 16 | P155: 322 | Q155: 1.204 | R155: 176
A156: Income | B156: tax | C156: payable | P156: 156 | Q156: 76 | R156: 77
A157: Other | B157: taxes | C157: payable | D157: 28 | P157: 154 | Q157: 209 | R157: 96
A158: Current | B158: portion | C158: of | D158: fi | E158: nance | F158: lease | G158: liabilities | H158: 22 | P158: 15 | Q158: 15 | R158: 11
A159: Provisions | B159: 25 | P159: 63 | Q159: 55 | R159: 8
A160: Amounts | B160: payable | C160: under | D160: put | E160: options | F160: for | G160: shares | H160: of | I160: subsidiaries | J160: 4 | P160: 0 | Q160: 6 | R160: 175
A161: Dividends | B161: payable | C161: by | D161: the | E161: parent | F161: entity | G161: to | H161: its | I161: shareholders | P161: 309 | Q161: 80 | R161: 38
A162: Dividends | B162: payable | C162: by | D162: the | E162: Group’s | F162: subsidiaries | G162: to | H162: minority | I162: shareholders | P162: 11 | Q162: 16 | R162: 24
P163: 6.538 | Q163: 5.311 | R163: 1.875
A164: Liabilities | B164: directly | C164: associated | D164: with | E164: disposal | F164: groups | G164: classifi | H164: ed | I164: as | J164: held | K164: for | L164: sale | P164: 12 | Q164: 0 | R164: 39
P165: 6.538 | Q165: 5.35 | R165: 1.898
A166: Total | B166: equity | C166: and | D166: liabilities | P166: 19.448 | Q166: 18.637 | R166: 8.51
A167: Consolidated | B167: Balance | C167: Sheet
A172: 1 | B172: 2 | C172: 3 | D172: 4 | E172: 5 | F172: 6 | G172: 7 | H172: 8 | I172: 9 | J172: 10 | K172: 11 | L172: 12 | M172: 13 | N172: 14 | O172: 15 | P172: 16 | Q172: 17 | R172: 18 | S172: 19 | T172: 20 | U172: 21 | V172: 22
A175: Use the add_text function
P178: 2008 | Q178: 2007 | R178: 2006
A179: ASSETS | N179: =add_text(A179:L179) -> ASSETS
A180: Non-current | B180: assets | N180: =add_text(A180:L180) -> Non-current assets
A181: Property, | B181: plant | C181: and | D181: equipment | E181: 9 | N181: Property, plant and equipment 9 | P181: 9.012 | Q181: 10.107 | R181: 3.655
A182: Intangible | B182: assets | C182: other | D182: than | E182: goodwill | F182: 10 | N182: Intangible assets other than goodwill 10 | P182: 885 | Q182: 806 | R182: 37
A183: Goodwill | B183: 5 | N183: Goodwill 5 | P183: 2.387 | Q183: 2.145 | R183: 112
A184: Investments | B184: in | C184: joint | D184: ventures | E184: and | F184: associates | G184: 11 | N184: Investments in joint ventures and associates 11 | P184: 551 | Q184: 592 | R184: 1.494
A185: Deferred | B185: income | C185: tax | D185: assets | E185: 8 | N185: Deferred income tax assets 8 | P185: 44 | Q185: 22 | R185: 11
A186: Other | B186: non-current | C186: assets | D186: 13 | N186: Other non-current assets 13 | P186: 278 | Q186: 240 | R186: 272
P187: 13.157 | Q187: 13.912 | R187: 5.581
A188: Current | B188: assets | N188: Current assets
A189: Inventories | B189: 14 | N189: Inventories 14 | P189: 2.416 | Q189: 1.619 | R189: 864
A190: Trade | B190: and | C190: other | D190: receivables | E190: 15 | N190: Trade and other receivables 15 | P190: 1.369 | Q190: 1.802 | R190: 556
A191: Prepayments | N191: Prepayments | P191: 76 | Q191: 196 | R191: 82
A192: Loans | B192: receivable | N192: Loans receivable | P192: 108 | Q192: 48 | R192: 19
A193: Receivables | B193: from | C193: related | D193: parties | E193: 16 | N193: Receivables from related parties 16 | P193: 137 | Q193: 60 | R193: 54
A194: Income | B194: tax | C194: receivable | N194: Income tax receivable | P194: 262 | Q194: 86 | R194: 51
A195: Other | B195: taxes | C195: recoverable | D195: 17 | N195: Other taxes recoverable 17 | P195: 397 | Q195: 351 | R195: 331
A196: Short-term | B196: investments | C196: 18 | N196: Short-term investments 18 | P196: 589 | Q196: 25 | R196: 25
A197: Cash | B197: and | C197: cash | D197: equivalents | E197: 19 | N197: Cash and cash equivalents 19 | P197: 930 | Q197: 327 | R197: 842
P198: 6.284 | Q198: 4.514 | R198: 2.824
A199: Assets | B199: of | C199: disposal | D199: groups | E199: classifi | F199: ed | G199: as | H199: held | I199: for | J199: sale | K199: 12 | N199: Assets of disposal groups classifi ed as held for sale 12 | P199: 7 | Q199: 211 | R199: 105
P200: 6.291 | Q200: 4.725 | R200: 2.929
A201: Total | B201: assets | N201: Total assets | P201: 19.448 | Q201: 18.637 | R201: 8.51
A202: EQUITY | B202: AND | C202: LIABILITIES | N202: EQUITY AND LIABILITIES
A203: Equity | N203: Equity
A204: Equity | B204: attributable | C204: to | D204: equity | E204: holders | F204: of | G204: the | H204: parent | I204: entity | N204: Equity attributable to equity holders of the parent entity
A205: Issued | B205: capital | C205: 20 | N205: Issued capital 20 | P205: 332 | Q205: 320 | R205: 318
A206: Treasury | B206: shares | C206: 20 | N206: Treasury shares 20 | P206: -9 | Q206: 0 | R206: 0
A207: Additional | B207: paid-in | C207: capital | D207: 20 | N207: Additional paid-in capital 20 | P207: 1.054 | Q207: 286 | R207: 531
A208: Revaluation | B208: surplus | C208: 4 | N208: Revaluation surplus 4 | P208: 218 | Q208: 211 | R208: 0
A209: Legal | B209: reserve | C209: 20 | N209: Legal reserve 20 | P209: 30 | Q209: 29 | R209: 28
A210: Accumulated | B210: profi | C210: ts | N210: Accumulated profi ts | P210: 4.448 | Q210: 4.108 | R210: 2.75
A211: Translation | B211: difference | N211: Translation difference | P211: -1.344 | Q211: 996 | R211: 439
P212: 4.729 | Q212: 5.95 | R212: 4.066
A213: Minority | B213: interests | N213: Minority interests | P213: 245 | Q213: 406 | R213: 169
P214: 4.974 | Q214: 6.356 | R214: 4.235
A215: Non-current | B215: liabilities | N215: Non-current liabilities
A216: Long-term | B216: loans | C216: 21 | N216: Long-term loans 21 | P216: 6.064 | Q216: 4.653 | R216: 1.855
A217: Deferred | B217: income | C217: tax | D217: liabilities | E217: 8 | N217: Deferred income tax liabilities 8 | P217: 1.329 | Q217: 1.69 | R217: 277
A218: Finance | B218: lease | C218: liabilities | D218: 22 | N218: Finance lease liabilities 22 | P218: 40 | Q218: 54 | R218: 42
A219: Employee | B219: benefi | C219: ts | D219: 23 | N219: Employee benefi ts 23 | P219: 292 | Q219: 347 | R219: 117
A220: Provisions | B220: 25 | N220: Provisions 25 | P220: 153 | Q220: 132 | R220: 39
A221: Other | B221: long-term | C221: liabilities | D221: 26 | N221: Other long-term liabilities 26 | P221: 58 | Q221: 55 | R221: 47
P222: 7.936 | Q222: 6.931 | R222: 2.377
A223: Current | B223: liabilities | N223: Current liabilities
A224: Trade | B224: and | C224: other | D224: payables | E224: 27 | N224: Trade and other payables 27 | P224: 1.479 | Q224: 1.242 | R224: 462
A225: Advances | B225: from | C225: customers | N225: Advances from customers | P225: 107 | Q225: 305 | R225: 67
A226: Short-term | B226: loans | C226: and | D226: current | E226: portion | F226: of | G226: long-term | H226: loans | I226: 21 | N226: Short-term loans and current portion of long-term loans 21 | P226: 3.922 | Q226: 2.103 | R226: 741
A227: Payables | B227: to | C227: related | D227: parties | E227: 16 | N227: Payables to related parties 16 | P227: 322 | Q227: 1.204 | R227: 176
A228: Income | B228: tax | C228: payable | N228: Income tax payable | P228: 156 | Q228: 76 | R228: 77
A229: Other | B229: taxes | C229: payable | D229: 28 | N229: Other taxes payable 28 | P229: 154 | Q229: 209 | R229: 96
A230: Current | B230: portion | C230: of | D230: fi | E230: nance | F230: lease | G230: liabilities | H230: 22 | N230: Current portion of fi nance lease liabilities 22 | P230: 15 | Q230: 15 | R230: 11
A231: Provisions | B231: 25 | N231: Provisions 25 | P231: 63 | Q231: 55 | R231: 8
A232: Amounts | B232: payable | C232: under | D232: put | E232: options | F232: for | G232: shares | H232: of | I232: subsidiaries | J232: 4 | N232: Amounts payable under put options for shares of subsidiaries 4 | P232: 0 | Q232: 6 | R232: 175
A233: Dividends | B233: payable | C233: by | D233: the | E233: parent | F233: entity | G233: to | H233: its | I233: shareholders | N233: Dividends payable by the parent entity to its shareholders | P233: 309 | Q233: 80 | R233: 38
A234: Dividends | B234: payable | C234: by | D234: the | E234: Group’s | F234: subsidiaries | G234: to | H234: minority | I234: shareholders | N234: Dividends payable by the Group’s subsidiaries to minority shareholders | P234: 11 | Q234: 16 | R234: 24
P235: 6.538 | Q235: 5.311 | R235: 1.875
A236: Liabilities | B236: directly | C236: associated | D236: with | E236: disposal | F236: groups | G236: classifi | H236: ed | I236: as | J236: held | K236: for | L236: sale | N236: Liabilities directly associated with disposal groups classifi ed as held for sale | P236: 12 | Q236: 0 | R236: 39
P237: 6.538 | Q237: 5.35 | R237: 1.898
A238: Total | B238: equity | C238: and | D238: liabilities | N238: Total equity and liabilities | P238: 19.448 | Q238: 18.637 | R238: 8.51
A239: Consolidated | B239: Balance | C239: Sheet
A242: Copy and paste special as values
C245: 2008 | D245: 2007 | E245: 2006
A246: ASSETS
A247: Non-current assets
A248: Property, plant and equipment 9 | C248: 9.012 | D248: 10.107 | E248: 3.655
A249: Intangible assets other than goodwill 10 | C249: 885 | D249: 806 | E249: 37
A250: Goodwill 5 | C250: 2.387 | D250: 2.145 | E250: 112
... 55 more rows

Sheet Audit Page
C3: EBITDA History | D3: ='Financial Model'!G520 -> TRUE
C4: Current Assets History | D4: ='Financial Model'!G538 -> TRUE

Sheet Production History
E1: Report | F1: Steel division
E2: Period Type | F2: Annual
G4: 22
G6: =G11 -> 2006 | H6: =H11 -> 2007 | I6: 2008 | J6: 2009 | K6: 2010 | L6: 2011 | M6: 2012
D7: =INDEX(D13:D104,$G$4) -> Steel Prices | E7: =INDEX(E13:E104,$G$4) -> USD/MT (ExW) | F7: Railway products | G7: 579 | H7: 711 | I7: 895 | J7: 611 | K7: 709 | L7: 882 | M7: 891
C10: Steel Volumes
E11: Unit | G11: 2006 | H11: 2007 | I11: 2008 | J11: 2009 | K11: 2010 | L11: 2011 | M11: 2012
F12: Production volumes
D13: =C10 -> Steel Volumes | E13: 000'MT | F13: Coke (6% humidity) | H13: 7559 | I13: 9206 | J13: 7506 | K13: 7979 | L13: 7556 | M13: 7586 | O13: =add_text(D13:F13) -> Steel Volumes 000'MT Coke (6% humidity)
D14: =D13 -> Steel Volumes | E14: 000'MT | F14: Coke saleable (dry weight) | H14: 1405 | I14: 1870 | J14: 1744 | K14: 1823 | L14: 1468 | M14: 1446 | O14: =add_text(D14:F14) -> Steel Volumes 000'MT Coke saleable (dry weight)
D15: =D14 -> Steel Volumes | E15: 000'MT | F15: Pig iron | G15: 12754 | H15: 12664 | I15: 13260 | J15: 11256 | K15: 11918 | L15: 11858 | M15: 12031 | O15: Steel Volumes 000'MT Pig iron
D16: Steel Volumes | E16: 000'MT | F16: Pig iron (saleable) | G16: 959 | H16: 1038 | I16: 840 | J16: 111 | K16: 145 | L16: 131 | M16: 263 | O16: Steel Volumes 000'MT Pig iron (saleable)
D17: Steel Volumes | E17: 000'MT | F17: Crude steel | G17: 16115 | H17: 16509 | I17: 17674 | J17: 15284 | K17: 16291 | L17: 16773 | M17: 15945 | O17: Steel Volumes 000'MT Crude steel
D18: Steel Volumes | E18: 000'MT | F18: Steel products, gross * | G18: 15357 | H18: 16539 | I18: 17602 | J18: 15237 | K18: 16128 | L18: 16349 | M18: 15700 | O18: Steel Volumes 000'MT Steel products, gross *
D19: Steel Volumes | E19: 000'MT | F19: Steel products, net of re-rolled volumes | G19: 14457 | H19: 15262 | I19: 16132 | J19: 14275 | K19: 14698 | L19: 15232 | M19: 14250 | O19: Steel Volumes 000'MT Steel products, net of re-rolled volumes
D20: Steel Volumes | E20: 000'MT | F20: Semi-finished products ** | G20: 6228 | H20: 4159 | I20: 4292 | J20: 5216 | K20: 3767 | L20: 3542 | M20: 3173 | O20: Steel Volumes 000'MT Semi-finished products **
D21: Steel Volumes | E21: 000'MT | F21: Construction products | G21: 4208 | H21: 5274 | I21: 5215 | J21: 4284 | K21: 4938 | L21: 5257 | M21: 5207 | O21: Steel Volumes 000'MT Construction products
D22: Steel Volumes | E22: 000'MT | F22: Railway products | G22: 1572 | H22: 2267 | I22: 2455 | J22: 1558 | K22: 1889 | L22: 2055 | M22: 1832 | O22: Steel Volumes 000'MT Railway products
D23: Steel Volumes | E23: 000'MT | F23: Flat-rolled products | G23: 1620 | H23: 2215 | I23: 2632 | J23: 2050 | K23: 2534 | L23: 2707 | M23: 2472 | O23: Steel Volumes 000'MT Flat-rolled products
D24: Steel Volumes | E24: 000'MT | F24: Tubular products | G24: 14 | H24: 470 | I24: 844 | J24: 673 | K24: 903 | L24: 848 | M24: 869 | O24: Steel Volumes 000'MT Tubular products
D25: Steel Volumes | E25: 000'MT | F25: Other steel products | G25: 815 | H25: 877 | I25: 693 | J25: 495 | K25: 667 | L25: 823 | M25: 697 | O25: Steel Volumes 000'MT Other steel products
D26: Steel Volumes | E26: 000'MT | F26: Total finished products | L26: 11690 | M26: 11077 | O26: Steel Volumes 000'MT Total finished products
C27: Steel Prices
E28: Unit | G28: 2006 | H28: 2007 | I28: 2008 | J28: 2009 | K28: 2010 | L28: 2011 | M28: 2012 | O28: Unit
D29: =C27 -> Steel Prices | E29: USD/MT (ExW) | F29: Coke | H29: 152 | I29: 244 | J29: 113 | K29: 196 | L29: 231 | M29: 191 | O29: Steel Prices USD/MT (ExW) Coke
D30: =D29 -> Steel Prices | E30: USD/MT (ExW) | F30: Pig iron | G30: 229 | H30: 291 | I30: 523 | J30: 247 | K30: 384 | L30: 466 | M30: 353 | O30: Steel Prices USD/MT (ExW) Pig iron
D31: =D30 -> Steel Prices | F31: Steel products | O31: Steel Prices Steel products
D32: Steel Prices | E32: USD/MT (ExW) | F32: Semi-finished products | G32: 362 | H32: 450 | I32: 649 | J32: 293 | K32: 420 | L32: 529 | M32: 457 | O32: Steel Prices USD/MT (ExW) Semi-finished products
D33: Steel Prices | E33: USD/MT (ExW) | F33: Construction products | G33: 478 | H33: 692 | I33: 903 | J33: 438 | K33: 595 | L33: 732 | M33: 677 | O33: Steel Prices USD/MT (ExW) Construction products
D34: Steel Prices | E34: USD/MT (ExW) | F34: Railway products | G34: 579 | H34: 711 | I34: 895 | J34: 611 | K34: 709 | L34: 882 | M34: 891 | O34: Steel Prices USD/MT (ExW) Railway products
D35: Steel Prices | E35: USD/MT (ExW) | F35: Flat-rolled products | G35: 472 | H35: 597 | I35: 812 | J35: 438 | K35: 589 | L35: 706 | M35: 607 | O35: Steel Prices USD/MT (ExW) Flat-rolled products
D36: Steel Prices | E36: USD/MT (ExW) | F36: Other steel products | G36: 446 | H36: 610 | I36: 937 | J36: 499 | K36: 655 | L36: 790 | M36: 729 | O36: Steel Prices USD/MT (ExW) Other steel products
D37: Steel Prices | F37: <i>Ukraine</i> | O37: Steel Prices <i>Ukraine</i>
D38: Steel Prices | E38: USD/MT (ExW) | F38: Coke | H38: 300 | I38: 330 | J38: 138 | K38: 267 | L38: 308 | M38: 214 | O38: Steel Prices USD/MT (ExW) Coke
D39: Steel Prices | E39: USD/MT (ExW) | F39: Pig iron | H39: 230 | I39: 506 | J39: 232 | K39: 374 | L39: 491 | M39: 339 | O39: Steel Prices USD/MT (ExW) Pig iron
D40: Steel Prices | F40: Steel products | O40: Steel Prices Steel products
D41: Steel Prices | E41: USD/MT (ExW) | F41: Semi-finished products | H41: 414 | I41: 612 | J41: 351 | K41: 438 | L41: 569 | M41: 523 | O41: Steel Prices USD/MT (ExW) Semi-finished products
D42: Steel Prices | E42: USD/MT (ExW) | F42: Construction products | H42: 626 | I42: 868 | J42: 442 | K42: 562 | L42: 691 | M42: 645 | O42: Steel Prices USD/MT (ExW) Construction products
D43: Steel Prices | E43: USD/MT (ExW) | F43: Other steel products | G43: 714 | H43: 851 | I43: 1077 | J43: 892 | K43: 975 | L43: 989 | M43: 914 | O43: Steel Prices USD/MT (ExW) Other steel products
D44: Steel Prices | F44: <i>Europe</i> | O44: Steel Prices <i>Europe</i>
D45: Steel Prices | F45: Steel products | O45: Steel Prices Steel products
D46: Steel Prices | E46: USD/MT (ExW) | F46: Construction products | H46: 926 | I46: 1194 | J46: 721 | K46: 759 | L46: 896 | M46: 877 | O46: Steel Prices USD/MT (ExW) Construction products
D47: Steel Prices | E47: USD/MT (ExW) | F47: Flat-rolled products | G47: 712 | H47: 902 | I47: 1167 | J47: 618 | K47: 719 | L47: 907 | M47: 743 | O47: Steel Prices USD/MT (ExW) Flat-rolled products
D48: Steel Prices | E48: USD/MT (ExW) | F48: Other steel products | G48: 711 | H48: 895 | I48: 1187 | J48: 1037 | K48: 955 | L48: 975 | M48: 813 | O48: Steel Prices USD/MT (ExW) Other steel products
D49: Steel Prices | F49: <i>North America</i> | O49: Steel Prices <i>North America</i>
D50: Steel Prices | F50: Steel products | O50: Steel Prices Steel products
D51: Steel Prices | E51: USD/MT (ExW) | F51: Construction products | H51: 672 | I51: 1067 | J51: 651 | K51: 766 | L51: 897 | M51: 845 | O51: Steel Prices USD/MT (ExW) Construction products
D52: Steel Prices | E52: USD/MT (ExW) | F52: Railway products | H52: 829 | I52: 1040 | J52: 956 | K52: 942 | L52: 1023 | M52: 989 | O52: Steel Prices USD/MT (ExW) Railway products
D53: Steel Prices | E53: USD/MT (ExW) | F53: Flat-rolled products | H53: 1356 | I53: 1559 | J53: 809 | K53: 880 | L53: 1134 | M53: 1017 | O53: Steel Prices USD/MT (ExW) Flat-rolled products
D54: Steel Prices | E54: USD/MT (ExW) | F54: Tubular products | H54: 1361 | I54: 1937 | J54: 1527 | K54: 1404 | L54: 1486 | M54: 1509 | O54: Steel Prices USD/MT (ExW) Tubular products
D55: Steel Prices | F55: <i>South Africa</i> | O55: Steel Prices <i>South Africa</i>
D56: Steel Prices | F56: Steel products | O56: Steel Prices Steel products
D57: Steel Prices | E57: USD/MT (ExW) | F57: Semi-finished products | I57: 646 | J57: 276 | K57: 438 | L57: 587 | M57: 489 | O57: Steel Prices USD/MT (ExW) Semi-finished products
D58: Steel Prices | E58: USD/MT (ExW) | F58: Construction products | H58: 858 | I58: 1022 | J58: 700 | K58: 663 | L58: 797 | M58: 737 | O58: Steel Prices USD/MT (ExW) Construction products
D59: Steel Prices | E59: USD/MT (ExW) | F59: Flat-rolled products | H59: 687 | I59: 900 | J59: 684 | K59: 710 | L59: 837 | M59: 765 | O59: Steel Prices USD/MT (ExW) Flat-rolled products
D60: Steel Prices | E60: USD/MT (ExW) | F60: Other steel products | H60: 705 | I60: 779 | J60: 336 | K60: 523 | L60: 677 | M60: 604 | O60: Steel Prices USD/MT (ExW) Other steel products
C61: Mining
E62: Unit | G62: 2006 | H62: 2007 | I62: 2008 | J62: 2009 | K62: 2010 | L62: 2011 | M62: 2012 | O62: Unit
D63: =C61 -> Mining | F63: Production volumes | O63: Mining Production volumes
D64: =D63 -> Mining | E64: 000'MT | F64: Iron ore products | O64: Mining 000'MT Iron ore products
D65: =D64 -> Mining | E65: 000'MT | F65: Lumpy ore (Ukraine) | H65: 169 | I65: 2694 | J65: 1678 | K65: 2044 | L65: 2446 | M65: 2608 | O65: Mining 000'MT Lumpy ore (Ukraine)
D66: Mining | E66: 000'MT | F66: Concentrate, saleable (Russia) | G66: 2523 | H66: 3504 | I66: 3615 | J66: 5648 | K66: 5822 | L66: 6447 | M66: 5615 | O66: Mining 000'MT Concentrate, saleable (Russia)
D67: Mining | E67: 000'MT | F67: Sinter (Russia) | G67: 8544 | H67: 7785 | I67: 7119 | J67: 4077 | K67: 3999 | L67: 4473 | M67: 4698 | O67: Mining 000'MT Sinter (Russia)
D68: Mining | E68: 000'MT | F68: Pellets (Russia) | G68: 5922 | H68: 6029 | I68: 5304 | J68: 5515 | K68: 5616 | L68: 5907 | M68: 6051 | O68: Mining 000'MT Pellets (Russia)
D69: Mining | E69: 000'MT | F69: Fines ore (South Africa) | H69: 0 | I69: 177 | J69: 490 | K69: 601 | L69: 640 | M69: 607 | O69: Mining 000'MT Fines ore (South Africa)
D70: Mining | E70: 000'MT | F70: Lumpy ore (South Africa) | H70: 0 | I70: 1944 | J70: 1357 | K70: 1723 | L70: 1257 | M70: 1174 | O70: Mining 000'MT Lumpy ore (South Africa)
D71: Mining | E71: 000'MT | F71: Coal | O71: Mining 000'MT Coal
D72: Mining | E72: 000'MT | F72: Raw coking coal (mined) | G72: 743 | H72: 3939 | I72: 9065 | J72: 10300 | K72: 7509 | L72: 6303 | M72: 8506 | O72: Mining 000'MT Raw coking coal (mined)
D73: Mining | E73: 000'MT | F73: Raw steam coal (mined) | G73: 99 | H73: 2980 | I73: 4901 | J73: 4146 | K73: 3830 | L73: 2965 | M73: 2283 | O73: Mining 000'MT Raw steam coal (mined)
D74: Mining | E74: 000'MT | F74: Coking coal concentrate (production) | H74: 1897 | I74: 7350 | J74: 6914 | K74: 6768 | L74: 6501 | M74: 6477 | O74: Mining 000'MT Coking coal concentrate (production)
D75: Mining | E75: 000'MT | F75: Steam coal concentrate (production) | H75: 0 | I75: 801 | J75: 1043 | K75: 1503 | L75: 859 | M75: 421 | O75: Mining 000'MT Steam coal concentrate (production)
D76: Mining | F76: Realized prices | O76: Mining Realized prices
D77: Mining | F77: Iron ore products | O77: Mining Iron ore products
D78: Mining | E78: USD/MT (ExW) | F78: Lumpy ore (Ukraine) | H78: 31 | I78: 56 | J78: 28 | K78: 58 | L78: 78 | M78: 61 | O78: =add_text(D78:F78) -> Mining USD/MT (ExW) Lumpy ore (Ukraine)
D79: Mining | E79: USD/MT (ExW) | F79: Concentrate, saleable (Russia) | G79: 53 | H79: 69 | I79: 82 | J79: 54 | K79: 86 | L79: 111 | M79: 84 | O79: Mining USD/MT (ExW) Concentrate, saleable (Russia)
D80: Mining | E80: USD/MT (ExW) | F80: Sinter (Russia) | G80: 64 | H80: 84 | I80: 111 | J80: 49 | K80: 92 | L80: 128 | M80: 91 | O80: Mining USD/MT (ExW) Sinter (Russia)
D81: Mining | E81: USD/MT (ExW) | F81: Pellets (Russia) | G81: 65 | H81: 84 | I81: 108 | J81: 41 | K81: 89 | L81: 132 | M81: 91 | O81: Mining USD/MT (ExW) Pellets (Russia)
D82: Mining | E82: USD/MT (ExW) | F82: Iron ore fines (South Africa) | I82: 64 | J82: 19 | K82: 31 | L82: 24 | M82: 12 | O82: Mining USD/MT (ExW) Iron ore fines (South Africa)
D83: Mining | F83: Coal | O83: Mining Coal
D84: Mining | E84: USD/MT (ExW) | F84: Raw coking coal | G84: 30 | H84: 44 | I84: 83 | J84: 35 | K84: 66 | L84: 97 | M84: 69 | O84: Mining USD/MT (ExW) Raw coking coal
D85: Mining | E85: USD/MT (ExW) | F85: Raw steam coal | G85: 48 | H85: 27 | I85: 35 | J85: 19 | K85: 26 | L85: 36 | M85: 27 | O85: Mining USD/MT (ExW) Raw steam coal
D86: Mining | E86: USD/MT (ExW) | F86: Coking coal concentrate | H86: 92 | I86: 164 | J86: 71 | K86: 140 | L86: 203 | M86: 136 | O86: Mining USD/MT (ExW) Coking coal concentrate
D87: Mining | E87: USD/MT (ExW) | F87: Steam coal concentrate | I87: 84 | J87: 31 | K87: 58 | L87: 80 | M87: 56 | O87: Mining USD/MT (ExW) Steam coal concentrate
C88: Vanadium Products
E89: Unit | I89: 2008 | J89: 2009 | K89: 2010 | L89: 2011 | M89: 2012 | O89: Unit
D90: =C88 -> Vanadium Products | F90: Production volumes | O90: Vanadium Products Production volumes
D91: =D90 -> Vanadium Products | E91: T V | F91: Vanadium in slag (gross production) | I91: 18421 | J91: 19403 | K91: 20664 | L91: 20741 | M91: 21060 | O91: Vanadium Products T V Vanadium in slag (gross production)
D92: =D91 -> Vanadium Products | E92: T V | F92: <i>Russia</i> | I92: 10591 | J92: 13106 | K92: 12293 | L92: 12860 | M92: 14856 | O92: Vanadium Products T V <i>Russia</i>
D93: Vanadium Products | E93: T V | F93: <i>South Africa</i> | I93: 7829 | J93: 6297 | K93: 8371 | L93: 7881 | M93: 6205 | O93: Vanadium Products T V <i>South Africa</i>
D94: Vanadium Products | F94: Vanadium in final products (saleable) | O94: Vanadium Products Vanadium in final products (saleable)
D95: Vanadium Products | E95: T V | F95: Ferrovanadium | I95: 10673 | J95: 8029 | K95: 13507 | L95: 16683 | M95: 14381 | O95: Vanadium Products T V Ferrovanadium
D96: Vanadium Products | E96: T V | F96: <i>Produced at own facilities</i> | I96: 3777 | J96: 2107 | K96: 5252 | L96: 6321 | M96: 7259 | O96: Vanadium Products T V <i>Produced at own facilities</i>
D97: Vanadium Products | E97: T V | F97: <i>Processed at 3rd parties' facilities</i> | I97: 6896 | J97: 5922 | K97: 8255 | L97: 10362 | M97: 7122 | O97: Vanadium Products T V <i>Processed at 3rd parties' facilities</i>
D98: Vanadium Products | E98: T V | F98: Nitrovan ® | I98: 2373 | J98: 1724 | K98: 2454 | L98: 2874 | M98: 2723 | O98: Vanadium Products T V Nitrovan ®
D99: Vanadium Products | E99: T V | F99: Oxides, vanadium aluminium and chemicals | I99: 3382 | J99: 976 | K99: 1317 | L99: 1277 | M99: 1330 | O99: Vanadium Products T V Oxides, vanadium aluminium and chemicals
D100: Vanadium Products | F100: Realized prices | O100: Vanadium Products Realized prices
D101: Vanadium Products | F101: Vanadium in final products | O101: Vanadium Products Vanadium in final products
D102: Vanadium Products | E102: USD/t of V(ExW) | F102: Ferrovanadium | I102: 59540 | J102: 23649 | K102: 27338 | L102: 27653 | M102: 24062 | O102: Vanadium Products USD/t of V(ExW) Ferrovanadium
D103: Vanadium Products | E103: USD/t of V(ExW) | F103: Nitrovan® | I103: 55055 | J103: 24894 | K103: 28860 | L103: 29506 | M103: 27900 | O103: Vanadium Products USD/t of V(ExW) Nitrovan®
D104: Vanadium Products | E104: USD/t of V(ExW) | F104: Oxides, vanadium aluminium and chemicals | I104: 48950 | J104: 41191 | K104: 38527 | L104: 36194 | M104: 32579 | O104: Vanadium Products USD/t of V(ExW) Oxides, vanadium aluminium and chemicals

Sheet Cap Exp Backup
R3: ktpa
R4: per M USD
O5: Cost | P5: Quantity | Q5: Dollar | R5: Capacity
O6: $ Mil | P6: Annual | Q6: per Ton | R6: per Dollar
O7: 490 | P7: 950 | Q7: =(O7*1000000)/(P7*1000) -> 515.7894737 | R7: =P7/O7 -> 1.93877551
O9: 124 | P9: 450 | Q9: =(O9*1000000)/(P9*1000) -> 275.5555556 | R9: =P9/O9 -> 3.629032258
O11: 142 | P11: 450 | Q11: =(O11*1000000)/(P11*1000) -> 315.5555556 | R11: =P11/O11 -> 3.169014085
O13: 32 | P13: =580-525 -> 55 | Q13: =(O13*1000000)/(P13*1000) -> 581.8181818 | R13: =P13/O13 -> 1.71875
X24: =Y24-1 -> 2005 | Y24: =Z24-1 -> 2006 | Z24: =AA24-1 -> 2007 | AA24: 2008 | AB24: =AA24+1 -> 2009 | AC24: =AB24+1 -> 2010 | AD24: =AC24+1 -> 2011 | AE24: =AD24+1 -> 2012 | AF24: =AE24+1 -> 2013
W25: Maintenance | AA25: 400 | AB25: 150 | AC25: 400 | AD25: 500 | AE25: 657
W26: Total | Y26: 651 | Z26: 744 | AA26: 1103 | AB26: 441 | AC26: 832 | AD26: 1281 | AE26: 1261
Y86: =Z86-1 -> 2006 | Z86: =AA86-1 -> 2007 | AA86: 2008 | AB86: 2009 | AC86: 2010 | AD86: 2011 | AE86: 2012
Y88: 4694 | Z88: 11974 | AA88: 11333 | AB88: 11635 | AC88: 12372 | AD88: 12820 | AE88: 13604
Y89: =-1031-8 -> -1039 | Z89: =-1859-8 -> -1867 | AA89: =-2315-6 -> -2321 | AB89: -3050 | AC89: -3765 | AD89: -4514 | AE89: -5812
U119: =SUM(AA88:AA89) -> 9012 | V119: =SUM(Z88:Z89) -> 10107 | W119: =SUM(Y88:Y89) -> 3655
Z131: 1276
Q174: 303 | R174: 749 | S174: 1215
R196: 925 | S196: 1153 | T196: 1259

Sheet Debt Maturities
D22: 2013 | E22: =D22+1 -> 2014 | F22: 2015 | G22: 2016 | H22: 2017 | I22: 2018 | J22: 2019
C23: Maturities | D23: 1769 | E23: 1039 | F23: 1448 | G23: 1904 | H23: 642 | I23: 1384 | J23: 72
C24: total | D24: =SUM(23:23) -> 8258 | E24: =SUM(23:23) -> 8258 | F24: 8258 | G24: 8258 | H24: 8258 | I24: 8258 | J24: 8258
C25: Percent | D25: =D23/D24 -> 0.2142165173 | E25: =E23/E24 -> 0.1258173892 | F25: 0.1753451199 | G25: 0.2305643013 | H25: 0.07774279487 | I25: 0.1675950593 | J25: 0.008718818116

Sheet Stock Prices Competitors
N5: EVRAZ
N6: BE500 Steel
N7: MICEX
N8: RTS
N9: Mchel
N10: Severstal
N11: NLMK

Sheet Segments
D3: 2006 | E3: =F3-1 -> 2007 | F3: =G3-1 -> 2008 | G3: =H3-1 -> 2009 | H3: 2010 | I3: 2011 | J3: 2012
C5: Steel Revenue | D5: 8014 | E5: 11908 | F5: 17925 | G5: 9421 | H5: 12951 | I5: 16044 | J5: 14208
C6: Intersegment | D6: 76 | E6: 165 | F6: 302 | G6: 129 | H6: 359 | I6: 422 | J6: 324
C8: Steel EBITDA | D8: 1964 | E8: 3036 | F8: 2746 | G8: 950 | H8: 1445 | I8: 1120 | J8: 1096
C9: Production Cost | D9: =D5-D8 -> 6050 | E9: 8872 | F9: 15179 | G9: 8471 | H9: 11506 | I9: 14924 | J9: 13112
C10: Steel Production | D10: ='Production History'!G19/100 -> 144.57 | E10: ='Production History'!H19/100 -> 152.62 | F10: ='Production History'!I19/100 -> 161.32 | G10: ='Production History'!J19/100 -> 142.75 | H10: ='Production History'!K19/100 -> 146.98 | I10: ='Production History'!L19/100 -> 152.32 | J10: ='Production History'!M19/100 -> 142.5
C11: Steel Price | D11: =D5/D10 -> 55.43335408 | E11: 78.02385009 | F11: 111.1145549 | G11: 65.99649737 | H11: 88.11402912 | I11: 105.3308824 | J11: 99.70526316
C12: Production Cost/Ton | D12: =D9/D10 -> 41.84823961 | E12: 58.13130651 | F12: 94.09248698 | G12: 59.34150613 | H12: 78.28275956 | I12: 97.97794118 | J12: 92.01403509
C13: Margin per Ton | D13: =D11-D12 -> 13.58511448 | E13: 19.89254357 | F13: 17.02206794 | G13: 6.654991243 | H13: 9.83126956 | I13: 7.352941176 | J13: 7.69122807
C15: Mining Revenue | D15: 1147 | E15: 1903 | F15: 3634 | G15: 1348 | H15: 2378 | I15: 3512 | J15: 2519
C16: Intersegment | D16: 1026 | E16: 1532 | F16: 2344 | G16: 1160 | H16: 2056 | I16: 3092 | J16: 2261
C18: Mining EBITDA | D18: 351 | E18: 444 | F18: 971 | G18: 179 | H18: 898 | I18: 1529 | J18: 569
C19: Production Costs | D19: =D15-D18 -> 796 | E19: 1459 | F19: 2663 | G19: 1169 | H19: 1480 | I19: 1983 | J19: 1950
C20: Mining Production | D20: =D15/D21 -> 23.89583333 | E20: 70.48148148 | F20: 103.8285714 | G20: 70.94736842 | H20: 91.46153846 | I20: 97.55555556 | J20: 93.2962963
C21: Mining Price | D21: ='Production History'!G85 -> 48 | E21: ='Production History'!H85 -> 27 | F21: ='Production History'!I85 -> 35 | G21: ='Production History'!J85 -> 19 | H21: ='Production History'!K85 -> 26 | I21: ='Production History'!L85 -> 36 | J21: ='Production History'!M85 -> 27
C22: Cost per Ton | D22: =D19/D20 -> 33.31124673 | E22: 20.70047294 | F22: 25.64804623 | G22: 16.47700297 | H22: 16.18166526 | I22: 20.32687927 | J22: 20.90115125
C23: Margin per Ton | D23: =D21-D22 -> 14.68875327 | E23: 6.299527063 | F23: 9.35195377 | G23: 2.522997033 | H23: 9.818334735 | I23: 15.67312073 | J23: 6.09884875
C25: Vanadium Revenue | D25: 147 | E25: 583 | F25: 1206 | G25: 262 | H25: 537 | I25: 633 | J25: 509
C26: Intersegment | D26: 0 | E26: 0 | F26: 5 | G26: 36 | H26: 257 | I26: 364 | J26: 317
C28: Vanadium EBITDA | D28: -2 | E28: 45 | F28: 170 | G28: 12 | H28: 90 | I28: 111 | J28: 54
C29: Vanadium Production Cost | F29: =F25-F28 -> 1036 | G29: =G25-G28 -> 250 | H29: =H25-H28 -> 447 | I29: =I25-I28 -> 522 | J29: =J25-J28 -> 455
C30: Vanadium Production | D30: ='Production History'!G91/1000 -> 0 | E30: ='Production History'!H91/1000 -> 0 | F30: ='Production History'!I91/1000 -> 18.421 | G30: ='Production History'!J91/1000 -> 19.403 | H30: ='Production History'!K91/1000 -> 20.664 | I30: ='Production History'!L91/1000 -> 20.741 | J30: ='Production History'!M91/1000 -> 21.06
C31: Vanadium Price | F31: =F25/F30 -> 65.46875848 | G31: =G25/G30 -> 13.50306654 | H31: =H25/H30 -> 25.98722416 | I31: =I25/I30 -> 30.51926137 | J31: =J25/J30 -> 24.16904084
C34: Other Operations | D34: 604 | E34: 783 | F34: 1022 | G34: 556 | H34: 676 | I34: 822 | J34: 806
C35: Intersegment | D35: 518 | E35: 621 | F35: 756 | G35: 439 | H35: 536 | I35: 656 | J35: 606
C36: Other EBITDA | D36: 76 | E36: 87 | F36: 83 | G36: 110 | H36: 122 | I36: 176 | J36: 87
C39: Elimination Revenue | D39: -1620 | E39: -2318 | F39: -3407 | G39: -1764 | H39: -3208 | I39: -4534 | J39: -3508
C40: Elimination EBITDA | D40: -42 | E40: 2 | F40: 20 | G40: 0 | H40: -155 | I40: 17 | J40: 87
C43: Steel EBITDA | D43: 1964 | E43: 3036 | F43: 2746 | G43: 950 | H43: 1445 | I43: 1120 | J43: 1096
C44: Mining EBITDA | D44: 351 | E44: 444 | F44: 971 | G44: 179 | H44: 898 | I44: 1529 | J44: 569
C45: Vanadium EBITDA | D45: -2 | E45: 45 | F45: 170 | G45: 12 | H45: 90 | I45: 111 | J45: 54
C46: Other EBITDA | D46: 76 | E46: 87 | F46: 83 | G46: 110 | H46: 122 | I46: 176 | J46: 87
C47: Elimination EBITDA | D47: -42 | E47: 2 | F47: 20 | G47: 0 | H47: -155 | I47: 17 | J47: 87
C48: Total | D48: =SUM(D43:D47) -> 2347 | E48: =SUM(E43:E47) -> 3614 | F48: 3990 | G48: 1251 | H48: 2400 | I48: 2953 | J48: 1893
C55: Steel Revenue | D55: 8014 | E55: 11908 | F55: 17925 | G55: 9421 | H55: 12951 | I55: 16044 | J55: 14208
C56: Intersegment | D56: 76 | E56: 165 | F56: 302 | G56: 129 | H56: 359 | I56: 422 | J56: 324
C57: Mining Revenue | D57: 1147 | E57: 1903 | F57: 3634 | G57: 1348 | H57: 2378 | I57: 3512 | J57: 2519
C58: Intersegment | D58: 1026 | E58: 1532 | F58: 2344 | G58: 1160 | H58: 2056 | I58: 3092 | J58: 2261
C59: Vanadium Revenue | D59: 147 | E59: 583 | F59: 1206 | G59: 262 | H59: 537 | I59: 633 | J59: 509
C60: Intersegment | D60: 0 | E60: 0 | F60: 5 | G60: 36 | H60: 257 | I60: 364 | J60: 317
C61: Other Operations | D61: 604 | E61: 783 | F61: 1022 | G61: 556 | H61: 676 | I61: 822 | J61: 806
C62: Intersegment | D62: 518 | E62: 621 | F62: 756 | G62: 439 | H62: 536 | I62: 656 | J62: 606
C63: Elimination Revenue | D63: =(D56+D58+D60+D62)*-1 -> -1620 | E63: -2318 | F63: -3407 | G63: -1764 | H63: -3208 | I63: -4534 | J63: -3508
C64: Total Revenues | D64: =SUM(D55:D63) -> 9912 | E64: 15177 | F64: 23787 | G64: 11587 | H64: 16542 | I64: 21011 | J64: 18042
C67: Steel Revenue | D67: 8014 | E67: 11908 | F67: 17925 | G67: 9421 | H67: 12951 | I67: 16044 | J67: 14208
C68: Steel Production Cost | D68: =D9 -> 6050 | E68: =E9 -> 8872 | F68: 15179 | G68: 8471 | H68: 11506 | I68: 14924 | J68: 13112
C69: Mining Intersegment | D69: =D16 -> 1026 | E69: =E16 -> 1532 | F69: 2344 | G69: 1160 | H69: 2056 | I69: 3092 | J69: 2261
C70: Vanadium Intersegment | D70: =D26 -> 0 | E70: =E26 -> 0 | F70: 5 | G70: 36 | H70: 257 | I70: 364 | J70: 317
C71: Other Intersegment | D71: =D35 -> 518 | E71: =E35 -> 621 | F71: 756 | G71: 439 | H71: 536 | I71: 656 | J71: 606
C72: Outside Production Cost | D72: =D68-D69-D70-D71 -> 4506 | E72: =E68-E69-E70-E71 -> 6719 | F72: 12074 | G72: 6836 | H72: 8657 | I72: 10812 | J72: 9928
C74: Volumes | D74: =D10 -> 144.57 | E74: =E10 -> 152.62 | F74: 161.32 | G74: 142.75 | H74: 146.98 | I74: 152.32 | J74: 142.5
C75: Cost per Unit | D75: =D72/D74 -> 31.16829218 | E75: =E72/E74 -> 44.02437426 | F75: 74.84502851 | G75: 47.88791594 | H75: 58.89916996 | I75: 70.98214286 | J75: 69.67017544
C77: Price per Unit | D77: =D11 -> 55.43335408 | E77: =E11 -> 78.02385009 | F77: 111.1145549 | G77: 65.99649737 | H77: 88.11402912 | I77: 105.3308824 | J77: 99.70526316
C80: Steel Revenue | E80: 8014 | F80: 11908 | G80: 17925 | H80: 9421 | I80: 12951 | J80: 16044 | K80: 14208
C81: Intersegment | E81: 76 | F81: 165 | G81: 302 | H81: 129 | I81: 359 | J81: 422 | K81: 324
C82: Mining Revenue | E82: 1147 | F82: 1903 | G82: 3634 | H82: 1348 | I82: 2378 | J82: 3512 | K82: 2519
C83: Intersegment | E83: 1026 | F83: 1532 | G83: 2344 | H83: 1160 | I83: 2056 | J83: 3092 | K83: 2261
C84: Vanadium Revenue | E84: 147 | F84: 583 | G84: 1206 | H84: 262 | I84: 537 | J84: 633 | K84: 509
C85: Intersegment | E85: 0 | F85: 0 | G85: 5 | H85: 36 | I85: 257 | J85: 364 | K85: 317
C86: Other Operations | E86: 604 | F86: 783 | G86: 1022 | H86: 556 | I86: 676 | J86: 822 | K86: 806
C87: Intersegment | E87: 518 | F87: 621 | G87: 756 | H87: 439 | I87: 536 | J87: 656 | K87: 606
C88: Elimination Revenue | E88: =(E81+E83+E85+E87)*-1 -> -1620 | F88: -2318 | G88: -3407 | H88: -1764 | I88: -3208 | J88: -4534 | K88: -3508
C89: Total Revenues | E89: =E80+E82+E84+E86+E88 -> 8292 | F89: =F80+F82+F84+F86+F88 -> 12859 | G89: 20380 | H89: 9823 | I89: 13334 | J89: 16477 | K89: 14534
C90: Other Revenue | E90: =E89-E94 -> 8292 | F90: 12859 | G90: 20380 | H90: 9823 | I90: 13334 | J90: 16477 | K90: 14534
L138: 2642 | M138: 4305 | N138: 6215 | O138: 1237
L141: 2350 | M141: 2898 | N141: 2012

Sheet Website Data
T8: 2012 | U8: 2011 | V8: 2010
R10: Steel Revenue | T10: 14208 | U10: 16044 | V10: 12592
R11: Steel Price
R12: Steel Production
R13: Intersegment | T13: 324 | U13: 422
R14: Steel EBITDA | T14: 1096 | U14: 1120
R17: Mining Revenue | T17: 2519 | U17: 3512
R18: Mining Price
R19: Mining Production
R20: Inersegment | T20: 2261 | U20: 3092
R21: Mining EBITDA | T21: 569 | U21: 1529
R23: Vanadium Revenue | T23: 509 | U23: 633
R24: Vanadium Price
R25: Vanadium Production
R26: Intersegment | T26: 317 | U26: 364
R27: Vanadium EBITDA | T27: 54 | U27: 111
R29: Other Operations | T29: 806 | U29: 822
R30: Intersegment | T30: 606 | U30: 656
R31: EBITDA | T31: 87 | U31: 176
R34: Elimination Revenue | T34: -3508 | U34: -4534
R35: Elimination Price
R36: Elimination Production
R38: Elimination EBITDA | T38: =180+87 -> 267 | U38: =17+176 -> 193
